Body,Body Name,Date,Transaction Number,Invoice Number,Amount,Supplier Name,Supplier ID ,VAT Registration Number ,Expense Area,Expense Type,Expense Code,Purchase Order
http://statistics.data.gov.uk/id/local-authority/29UP,Tonbridge & Malling Borough Council,1/5/2022,0012008210/3,12008210, 159.90,British Telecommunications Plc,00012800,,Telephones - Rentals,General Admin Telephones,D24GT000045005,
http://statistics.data.gov.uk/id/local-authority/29UP,Tonbridge & Malling Borough Council,1/5/2022,0012008211/10,12008211, 3.00,O2 UK Ltd,01268000,,Mobile Telephones,Chief Exec Sals&Overheads,D01ACDC0245013,
http://statistics.data.gov.uk/id/local-authority/29UP,Tonbridge & Malling Borough Council,1/5/2022,0012008211/11,12008211, 3.00,O2 UK Ltd,01268000,,Mobile Telephones,Technical Sals&Overheads,D01AEDE0045013,
http://statistics.data.gov.uk/id/local-authority/29UP,Tonbridge & Malling Borough Council,1/5/2022,0012008211/12,12008211, 6.16,O2 UK Ltd,01268000,,Mobile Telephones,Technical Sals&Overheads,D01AEDE0145013,
http://statistics.data.gov.uk/id/local-authority/29UP,Tonbridge & Malling Borough Council,1/5/2022,0012008211/13,12008211, 9.00,O2 UK Ltd,01268000,,Mobile Telephones,Technical Sals&Overheads,D01AEDE0245013,
http://statistics.data.gov.uk/id/local-authority/29UP,Tonbridge & Malling Borough Council,1/5/2022,0012008211/14,12008211, 39.00,O2 UK Ltd,01268000,,Mobile Telephones,Technical Sals&Overheads,D01AEDE0445013,
http://statistics.data.gov.uk/id/local-authority/29UP,Tonbridge & Malling Borough Council,1/5/2022,0012008211/15,12008211, 3.00,O2 UK Ltd,01268000,,Mobile Telephones,Technical Sals&Overheads,D01AEDE0545013,
http://statistics.data.gov.uk/id/local-authority/29UP,Tonbridge & Malling Borough Council,1/5/2022,0012008211/16,12008211, 12.00,O2 UK Ltd,01268000,,Mobile Telephones,Finance Sals&Overheads,D01AFDF0045013,
http://statistics.data.gov.uk/id/local-authority/29UP,Tonbridge & Malling Borough Council,1/5/2022,0012008211/17,12008211, 6.00,O2 UK Ltd,01268000,,Mobile Telephones,Finance Sals&Overheads,D01AFDF0945013,
http://statistics.data.gov.uk/id/local-authority/29UP,Tonbridge & Malling Borough Council,1/5/2022,0012008211/18,12008211, 12.00,O2 UK Ltd,01268000,,Mobile Telephones,St Scene & Leis Sals&Overheads,D01AGDG0045013,
http://statistics.data.gov.uk/id/local-authority/29UP,Tonbridge & Malling Borough Council,1/5/2022,0012008211/19,12008211, 6.00,O2 UK Ltd,01268000,,Mobile Telephones,St Scene & Leis Sals&Overheads,D01AGDG0145013,
http://statistics.data.gov.uk/id/local-authority/29UP,Tonbridge & Malling Borough Council,1/5/2022,0012008211/20,12008211, 9.00,O2 UK Ltd,01268000,,Mobile Telephones,St Scene & Leis Sals&Overheads,D01AGDG0445013,
http://statistics.data.gov.uk/id/local-authority/29UP,Tonbridge & Malling Borough Council,1/5/2022,0012008211/21,12008211, 36.40,O2 UK Ltd,01268000,,Mobile Telephones,St Scene & Leis Sals&Overheads,D01AGDG2045013,
http://statistics.data.gov.uk/id/local-authority/29UP,Tonbridge & Malling Borough Council,1/5/2022,0012008211/22,12008211, 9.00,O2 UK Ltd,01268000,,Mobile Telephones,Planning Sals&Overheads,D01AJDJ0045013,
http://statistics.data.gov.uk/id/local-authority/29UP,Tonbridge & Malling Borough Council,1/5/2022,0012008211/23,12008211, 12.00,O2 UK Ltd,01268000,,Mobile Telephones,Planning Sals&Overheads,D01AJDJ0245013,
http://statistics.data.gov.uk/id/local-authority/29UP,Tonbridge & Malling Borough Council,1/5/2022,0012008211/24,12008211, 6.00,O2 UK Ltd,01268000,,Mobile Telephones,Legal Sals&Overheads,D01ARDR0045013,
http://statistics.data.gov.uk/id/local-authority/29UP,Tonbridge & Malling Borough Council,1/5/2022,0012008211/25,12008211, 12.00,O2 UK Ltd,01268000,,Mobile Telephones,Legal Sals&Overheads,D01ARDR0445013,
http://statistics.data.gov.uk/id/local-authority/29UP,Tonbridge & Malling Borough Council,1/5/2022,0012008211/26,12008211, 3.00,O2 UK Ltd,01268000,,Mobile Telephones,Legal Sals&Overheads,D01ARDR0745013,
http://statistics.data.gov.uk/id/local-authority/29UP,Tonbridge & Malling Borough Council,1/5/2022,0012008211/27,12008211, 3.00,O2 UK Ltd,01268000,,Mobile Telephones,Env Hlth & Hsg Sals&Overheads,D01AVDV0045013,
http://statistics.data.gov.uk/id/local-authority/29UP,Tonbridge & Malling Borough Council,1/5/2022,0012008211/28,12008211, 9.00,O2 UK Ltd,01268000,,Mobile Telephones,Env Hlth & Hsg Sals&Overheads,D01AVDV0145013,
http://statistics.data.gov.uk/id/local-authority/29UP,Tonbridge & Malling Borough Council,1/5/2022,0012008211/29,12008211, 6.00,O2 UK Ltd,01268000,,Mobile Telephones,Env Hlth & Hsg Sals&Overheads,D01AVDV0345013,
http://statistics.data.gov.uk/id/local-authority/29UP,Tonbridge & Malling Borough Council,1/5/2022,0012008211/3,12008211, 3.00,O2 UK Ltd,01268000,,Telephones - General,Open Spaces & Amenity Areas,B22LE000045010,
http://statistics.data.gov.uk/id/local-authority/29UP,Tonbridge & Malling Borough Council,1/5/2022,0012008211/30,12008211, 3.00,O2 UK Ltd,01268000,,Mobile Telephones,Env Hlth & Hsg Sals&Overheads,D01AVDV0745013,
http://statistics.data.gov.uk/id/local-authority/29UP,Tonbridge & Malling Borough Council,1/5/2022,0012008211/31,12008211, 9.00,O2 UK Ltd,01268000,,Mobile Telephones,Customer Services,D23CS000045013,
http://statistics.data.gov.uk/id/local-authority/29UP,Tonbridge & Malling Borough Council,1/5/2022,0012008211/32,12008211, 3.00,O2 UK Ltd,01268000,,Mobile Telephones,Tonbridge Gateway,D23TG000045013,
http://statistics.data.gov.uk/id/local-authority/29UP,Tonbridge & Malling Borough Council,1/5/2022,0012008211/33,12008211, 627.00,O2 UK Ltd,01268000,,Leased Lines & Modems,Information Technology,D27KD000045011,
http://statistics.data.gov.uk/id/local-authority/29UP,Tonbridge & Malling Borough Council,1/5/2022,0012008211/34,12008211, 3.00,O2 UK Ltd,01268000,,Mobile Telephones,Mayoral & Other Member Support,D29LX000045013,
http://statistics.data.gov.uk/id/local-authority/29UP,Tonbridge & Malling Borough Council,1/5/2022,0012008211/35,12008211, 3.00,O2 UK Ltd,01268000,,Emergency Out of Hours Recharg,Refuse Collection,H20SA000045030,
http://statistics.data.gov.uk/id/local-authority/29UP,Tonbridge & Malling Borough Council,1/5/2022,0012008211/36,12008211, 3.00,O2 UK Ltd,01268000,,Emergency Out of Hours Recharg,Street Scene,H23SD000045030,
http://statistics.data.gov.uk/id/local-authority/29UP,Tonbridge & Malling Borough Council,1/5/2022,0012008211/4,12008211, 6.00,O2 UK Ltd,01268000,,Telephones - General,Leybourne Lakes Country Park,B22LK000045010,
http://statistics.data.gov.uk/id/local-authority/29UP,Tonbridge & Malling Borough Council,1/5/2022,0012008211/5,12008211, 6.00,O2 UK Ltd,01268000,,Mobile Telephones,Admin & Prop Sals&Overheads,D01AADA0045013,
http://statistics.data.gov.uk/id/local-authority/29UP,Tonbridge & Malling Borough Council,1/5/2022,0012008211/6,12008211, 3.00,O2 UK Ltd,01268000,,Mobile Telephones,Admin & Prop Sals&Overheads,D01AADA1045013,
http://statistics.data.gov.uk/id/local-authority/29UP,Tonbridge & Malling Borough Council,1/5/2022,0012008211/7,12008211, 9.00,O2 UK Ltd,01268000,,Mobile Telephones,Admin & Prop Sals&Overheads,D01AADA1245013,
http://statistics.data.gov.uk/id/local-authority/29UP,Tonbridge & Malling Borough Council,1/5/2022,0012008211/8,12008211, 3.00,O2 UK Ltd,01268000,,Mobile Telephones,Chief Exec Sals&Overheads,D01ACDC0045013,
http://statistics.data.gov.uk/id/local-authority/29UP,Tonbridge & Malling Borough Council,1/5/2022,0012008211/9,12008211, 3.00,O2 UK Ltd,01268000,,Mobile Telephones,Chief Exec Sals&Overheads,D01ACDC0145013,
http://statistics.data.gov.uk/id/local-authority/29UP,Tonbridge & Malling Borough Council,1/5/2022,0012008212/3,12008212, 15126.74,Phoenix Software Ltd,00077400,755349015,Software Hire & Support,Information Technology,D27KD000044059,
http://statistics.data.gov.uk/id/local-authority/29UP,Tonbridge & Malling Borough Council,1/5/2022,0012008213/3,12008213, 80.49,Plot it,01827000,,Toner Cartridges,Information Technology,D27KD000043018,
http://statistics.data.gov.uk/id/local-authority/29UP,Tonbridge & Malling Borough Council,1/5/2022,0012008214/1,12008214, 2173.28,Sapphire Technologies Ltd,01452900,,Subscriptions,Information Technology,D27KD000047002,410032103
http://statistics.data.gov.uk/id/local-authority/29UP,Tonbridge & Malling Borough Council,1/5/2022,0012008215/1,12008215, 1373.28,NTT Cloud Communications UK Ltd,01794600,,Software Hire & Support,Information Technology,D27KD000044059,410031928
http://statistics.data.gov.uk/id/local-authority/29UP,Tonbridge & Malling Borough Council,1/5/2022,0021037640/1,21037640, 225.00,PSR Lighting & Signs Ltd,01265400,,Maintenance of Grounds,Tonbridge Castle Grounds,B22LB000020402,210056580
http://statistics.data.gov.uk/id/local-authority/29UP,Tonbridge & Malling Borough Council,1/5/2022,0021037656/1,21037656, 20341.80,Landscape Services Ltd,00057600,,Grounds Maintenance Contract,Sports Grounds,B13ET000050103,
http://statistics.data.gov.uk/id/local-authority/29UP,Tonbridge & Malling Borough Council,1/5/2022,0021037656/10,21037656, 149.11,Landscape Services Ltd,00057600,,Grounds Maintenance Contract,Churchyards St Stephens,B28MY000050103,
http://statistics.data.gov.uk/id/local-authority/29UP,Tonbridge & Malling Borough Council,1/5/2022,0021037656/11,21037656, 164.81,Landscape Services Ltd,00057600,,Grounds Maintenance Contract,Grounds,D21FF000050103,
http://statistics.data.gov.uk/id/local-authority/29UP,Tonbridge & Malling Borough Council,1/5/2022,0021037656/12,21037656, 312.58,Landscape Services Ltd,00057600,,Maintenance of Grounds,Parking Off-Street,E10HA000020402,
http://statistics.data.gov.uk/id/local-authority/29UP,Tonbridge & Malling Borough Council,1/5/2022,0021037656/13,21037656, 980.27,Landscape Services Ltd,00057600,,Maintenance of Grounds,Parking Off-Street,E10HAE00120402,
http://statistics.data.gov.uk/id/local-authority/29UP,Tonbridge & Malling Borough Council,1/5/2022,0021037656/14,21037656, 93.08,Landscape Services Ltd,00057600,,Maintenance of Grounds,Parking Off-Street,E10HAE00220402,
http://statistics.data.gov.uk/id/local-authority/29UP,Tonbridge & Malling Borough Council,1/5/2022,0021037656/15,21037656, 84.41,Landscape Services Ltd,00057600,,Maintenance of Grounds,Parking Off-Street,E10HAE00320402,
http://statistics.data.gov.uk/id/local-authority/29UP,Tonbridge & Malling Borough Council,1/5/2022,0021037656/16,21037656, 21.05,Landscape Services Ltd,00057600,,Maintenance of Grounds,Parking Off-Street,E10HAE00420402,
http://statistics.data.gov.uk/id/local-authority/29UP,Tonbridge & Malling Borough Council,1/5/2022,0021037656/17,21037656, 0.54,Landscape Services Ltd,00057600,,Maintenance of Grounds,Parking Off-Street,E10HAE00520402,
http://statistics.data.gov.uk/id/local-authority/29UP,Tonbridge & Malling Borough Council,1/5/2022,0021037656/18,21037656, 58.93,Landscape Services Ltd,00057600,,Maintenance of Grounds,Parking Off-Street,E10HAE00620402,
http://statistics.data.gov.uk/id/local-authority/29UP,Tonbridge & Malling Borough Council,1/5/2022,0021037656/19,21037656, 137.58,Landscape Services Ltd,00057600,,Maintenance of Grounds,Parking Off-Street,E10HAE01020402,
http://statistics.data.gov.uk/id/local-authority/29UP,Tonbridge & Malling Borough Council,1/5/2022,0021037656/2,21037656, 7076.24,Landscape Services Ltd,00057600,,Grounds Maintenance Contract,Tonbridge Castle Grounds,B22LB000050103,
http://statistics.data.gov.uk/id/local-authority/29UP,Tonbridge & Malling Borough Council,1/5/2022,0021037656/20,21037656, 3.05,Landscape Services Ltd,00057600,,Maintenance of Grounds,Parking Off-Street,E10HAE01220402,
http://statistics.data.gov.uk/id/local-authority/29UP,Tonbridge & Malling Borough Council,1/5/2022,0021037656/21,21037656, 6.73,Landscape Services Ltd,00057600,,Maintenance of Grounds,Parking Off-Street,E10HAE01320402,
http://statistics.data.gov.uk/id/local-authority/29UP,Tonbridge & Malling Borough Council,1/5/2022,0021037656/22,21037656, 27.99,Landscape Services Ltd,00057600,,Maintenance of Grounds,Parking Off-Street,E10HAE01520402,
http://statistics.data.gov.uk/id/local-authority/29UP,Tonbridge & Malling Borough Council,1/5/2022,0021037656/23,21037656, 54.69,Landscape Services Ltd,00057600,,Maintenance of Grounds,Parking Off-Street,E10HAE01620402,
http://statistics.data.gov.uk/id/local-authority/29UP,Tonbridge & Malling Borough Council,1/5/2022,0021037656/24,21037656, 13.65,Landscape Services Ltd,00057600,,Maintenance of Grounds,Parking Off-Street,E10HAE02120402,
http://statistics.data.gov.uk/id/local-authority/29UP,Tonbridge & Malling Borough Council,1/5/2022,0021037656/25,21037656, 21.74,Landscape Services Ltd,00057600,,Maintenance of Grounds,Parking Off-Street,E10HAE02320402,
http://statistics.data.gov.uk/id/local-authority/29UP,Tonbridge & Malling Borough Council,1/5/2022,0021037656/26,21037656, 83.33,Landscape Services Ltd,00057600,,Maintenance of Grounds,Parking Off-Street,E10HAE02820402,
http://statistics.data.gov.uk/id/local-authority/29UP,Tonbridge & Malling Borough Council,1/5/2022,0021037656/27,21037656, 22.56,Landscape Services Ltd,00057600,,Maintenance of Grounds,Parking Off-Street,E10HAE04020402,
http://statistics.data.gov.uk/id/local-authority/29UP,Tonbridge & Malling Borough Council,1/5/2022,0021037656/28,21037656, 74.40,Landscape Services Ltd,00057600,,Maintenance of Grounds,Parking Off-Street,E10HAE04520402,
http://statistics.data.gov.uk/id/local-authority/29UP,Tonbridge & Malling Borough Council,1/5/2022,0021037656/3,21037656, 53.86,Landscape Services Ltd,00057600,,Trade Refuse Charges,Haysden Country Park,B22LC000044008,
http://statistics.data.gov.uk/id/local-authority/29UP,Tonbridge & Malling Borough Council,1/5/2022,0021037656/4,21037656, 462.07,Landscape Services Ltd,00057600,,Litter Collection,Haysden Country Park,B22LC000044061,
http://statistics.data.gov.uk/id/local-authority/29UP,Tonbridge & Malling Borough Council,1/5/2022,0021037656/5,21037656, 1600.71,Landscape Services Ltd,00057600,,Grounds Maintenance Contract,Haysden Country Park,B22LC000050103,
http://statistics.data.gov.uk/id/local-authority/29UP,Tonbridge & Malling Borough Council,1/5/2022,0021037656/6,21037656, 554.05,Landscape Services Ltd,00057600,,Grounds Maintenance Contract,Haysden Country Park,B22LC000050103,
http://statistics.data.gov.uk/id/local-authority/29UP,Tonbridge & Malling Borough Council,1/5/2022,0021037656/7,21037656, 11232.13,Landscape Services Ltd,00057600,,Grounds Maintenance Contract,Open Spaces & Amenity Areas,B22LE000050103,
http://statistics.data.gov.uk/id/local-authority/29UP,Tonbridge & Malling Borough Council,1/5/2022,0021037656/8,21037656, 4341.07,Landscape Services Ltd,00057600,,Grounds Maintenance Contract,Cemetery,B26MP000050103,
http://statistics.data.gov.uk/id/local-authority/29UP,Tonbridge & Malling Borough Council,1/5/2022,0021037656/9,21037656, 205.04,Landscape Services Ltd,00057600,,Grounds Maintenance Contract,Churchyards St Peter & St Paul,B28MX000050103,
http://statistics.data.gov.uk/id/local-authority/29UP,Tonbridge & Malling Borough Council,1/5/2022,0022026071/1,22026071, 14888.64,Meadway Construction,01825400,,Other Expenses,Disabled Facilities Grant Mand,P03AC000009908,
http://statistics.data.gov.uk/id/local-authority/29UP,Tonbridge & Malling Borough Council,1/5/2022,0022026135/3,22026135, 763.31,G2 Recruitment Solutions,01786000,,Temporary Staff,Env Hlth & Hsg Sals&Overheads,D01AVDV0711300,
http://statistics.data.gov.uk/id/local-authority/29UP,Tonbridge & Malling Borough Council,1/5/2022,0022026136/3,22026136, 239.25,G2 Recruitment Solutions,01786000,,Temporary Staff,Env Hlth & Hsg Sals&Overheads,D01AVDV0711300,
http://statistics.data.gov.uk/id/local-authority/29UP,Tonbridge & Malling Borough Council,1/5/2022,0022026137/1,22026137, 2990.00,Waste Consulting LLP,01530700,737059028,Other Expenses,Refuse Collection,H20SA000048010,220003184
http://statistics.data.gov.uk/id/local-authority/29UP,Tonbridge & Malling Borough Council,1/5/2022,0022026138/3,22026138, 3735.29,Ward Security LTD,01490000,,Dog Warden,Street Scene,H23SD000044100,
http://statistics.data.gov.uk/id/local-authority/29UP,Tonbridge & Malling Borough Council,1/5/2022,0022026139/3,22026139, 218.60,Countrystyle Group,00835900,781981681,Plastic Recycling,Dry Recycling,H34SR000054019,
http://statistics.data.gov.uk/id/local-authority/29UP,Tonbridge & Malling Borough Council,1/5/2022,0022026141/1,22026141, 14.70,KCS,00054200,,Stationery,Env Hlth & Hsg Sals&Overheads,D01AVDV0643003,220003183
http://statistics.data.gov.uk/id/local-authority/29UP,Tonbridge & Malling Borough Council,1/5/2022,0022026141/2,22026141, 0.90,KCS,00054200,,Stationery,Env Hlth & Hsg Sals&Overheads,D01AVDV0643003,220003183
http://statistics.data.gov.uk/id/local-authority/29UP,Tonbridge & Malling Borough Council,1/5/2022,0022026141/3,22026141, 1.10,KCS,00054200,,Stationery,Env Hlth & Hsg Sals&Overheads,D01AVDV0643003,220003183
http://statistics.data.gov.uk/id/local-authority/29UP,Tonbridge & Malling Borough Council,1/5/2022,0022026141/4,22026141, 3.30,KCS,00054200,,Stationery,Env Hlth & Hsg Sals&Overheads,D01AVDV0643003,220003183
http://statistics.data.gov.uk/id/local-authority/29UP,Tonbridge & Malling Borough Council,1/5/2022,0022026141/5,22026141, 4.00,KCS,00054200,,Stationery,Env Hlth & Hsg Sals&Overheads,D01AVDV0643003,220003183
http://statistics.data.gov.uk/id/local-authority/29UP,Tonbridge & Malling Borough Council,1/5/2022,0022026141/6,22026141, 19.20,KCS,00054200,,Stationery,Env Hlth & Hsg Sals&Overheads,D01AVDV0643003,220003183
http://statistics.data.gov.uk/id/local-authority/29UP,Tonbridge & Malling Borough Council,1/5/2022,0022026142/1,22026142, 961.00,Kent Property Services,01722500,,Temporary Accommodation,Homelessness,C01AA000044051,
http://statistics.data.gov.uk/id/local-authority/29UP,Tonbridge & Malling Borough Council,1/5/2022,0022026143/1,22026143, 912.00,The Oyster Partnership,01196400,,Temporary Staff,Env Hlth & Hsg Sals&Overheads,D01AVDV0711300,
http://statistics.data.gov.uk/id/local-authority/29UP,Tonbridge & Malling Borough Council,1/5/2022,0022026144/1,22026144, 4645.60,Countrystyle Group,00835900,781981681,Plastic Recycling,Dry Recycling,H34SR000054019,
http://statistics.data.gov.uk/id/local-authority/29UP,Tonbridge & Malling Borough Council,1/5/2022,0022026145/1,22026145, 12300.00,MGB Plastics Ltd,00709600,,Initial Furniture & Equipment,Green Waste Bin Growth/Replace,P02BC000009906,220003178
http://statistics.data.gov.uk/id/local-authority/29UP,Tonbridge & Malling Borough Council,1/5/2022,0022026146/1,22026146, 12300.00,MGB Plastics Ltd,00709600,,Initial Furniture & Equipment,Green Waste Bin Growth/Replace,P02BC000009906,220003178
http://statistics.data.gov.uk/id/local-authority/29UP,Tonbridge & Malling Borough Council,1/5/2022,0031018368/1,31018368, 275.00,Archway Highway Services Ltd,01398000,,Premises Repairs & Maintenance,Parking On-Street,E10HD000020601,310042713
http://statistics.data.gov.uk/id/local-authority/29UP,Tonbridge & Malling Borough Council,1/5/2022,0031018369/1,31018369, 156.30,British Telecommunications Plc,00012800,,Maintenance - General,Security Services Management,E09GA000040135,
http://statistics.data.gov.uk/id/local-authority/29UP,Tonbridge & Malling Borough Council,1/5/2022,0031018370/1,31018370, 138.90,British Telecommunications Plc,00012800,,Maintenance - General,Security Services Management,E09GA000040135,
http://statistics.data.gov.uk/id/local-authority/29UP,Tonbridge & Malling Borough Council,1/5/2022,0031018371/1,31018371, 500.00,Traffic Enforcement Centre,00604200,,Adjudication & Enforcement Ser,Parking Off-Street,E10HA000044230,
http://statistics.data.gov.uk/id/local-authority/29UP,Tonbridge & Malling Borough Council,1/5/2022,0031018371/2,31018371, 500.00,Traffic Enforcement Centre,00604200,,Adjudication & Enforcement Ser,Parking On-Street,E10HD000044230,
http://statistics.data.gov.uk/id/local-authority/29UP,Tonbridge & Malling Borough Council,1/5/2022,0031018372/1,31018372, 145.46,Shell U.K. Oil Products Limited,01673300,,"Petrol, Diesel & Oil",Parking Off-Street,E10HA000030106,
http://statistics.data.gov.uk/id/local-authority/29UP,Tonbridge & Malling Borough Council,1/5/2022,0031018372/2,31018372, 145.46,Shell U.K. Oil Products Limited,01673300,,"Petrol, Diesel & Oil",Parking On-Street,E10HD000030106,
http://statistics.data.gov.uk/id/local-authority/29UP,Tonbridge & Malling Borough Council,1/5/2022,0031018373/1,31018373, 77.81,Shell U.K. Oil Products Limited,01673300,,"Petrol, Diesel & Oil",Patrolling,B22LF000030106,
http://statistics.data.gov.uk/id/local-authority/29UP,Tonbridge & Malling Borough Council,1/5/2022,0031018373/2,31018373, 176.17,Shell U.K. Oil Products Limited,01673300,,"Petrol, Diesel & Oil",Parking Off-Street,E10HA000030106,
http://statistics.data.gov.uk/id/local-authority/29UP,Tonbridge & Malling Borough Council,1/5/2022,0031018373/3,31018373, 176.16,Shell U.K. Oil Products Limited,01673300,,"Petrol, Diesel & Oil",Parking On-Street,E10HD000030106,
http://statistics.data.gov.uk/id/local-authority/29UP,Tonbridge & Malling Borough Council,1/5/2022,0032009348/1,32009348, 5577.50,G L Hearn Ltd,01483700,,Local Dev Framework Expenses,Preparation of Local Dev Frame,A01AE000044023,320003359
http://statistics.data.gov.uk/id/local-authority/29UP,Tonbridge & Malling Borough Council,1/5/2022,0032009349/1,32009349, 182.07,KM Media Group Ltd,00053900,,Advertising General,Development Management,A01ABZ99944216,320003365
http://statistics.data.gov.uk/id/local-authority/29UP,Tonbridge & Malling Borough Council,1/5/2022,0032009350/1,32009350, 1526.80,The Oyster Partnership,01196400,,Temporary Staff,Planning Sals&Overheads,D01AJDJ0111300,
http://statistics.data.gov.uk/id/local-authority/29UP,Tonbridge & Malling Borough Council,1/5/2022,0041033798/3,41033798, 2056.01,Maidstone Borough Council,01173700,,Bailiffs Commission,Local Revenue & NNDR Collect,D41QA000044075,
http://statistics.data.gov.uk/id/local-authority/29UP,Tonbridge & Malling Borough Council,1/5/2022,0041033799/3,41033799, 429.09,Maidstone Borough Council,01173700,,Bailiffs Commission,Local Revenue & NNDR Collect,D41QA000044075,
http://statistics.data.gov.uk/id/local-authority/29UP,Tonbridge & Malling Borough Council,1/5/2022,0041033800/4,41033800, 2261.11,Rundle & Co Ltd,00087200,,Bailiffs Commission,Local Revenue & NNDR Collect,D41QA000044075,
http://statistics.data.gov.uk/id/local-authority/29UP,Tonbridge & Malling Borough Council,1/5/2022,0041033803/3,41033803, 925.00,Morgan Hunt UK Ltd,01086900,,Temporary Staff,Finance Sals&Overheads,D01AFDF1111300,
http://statistics.data.gov.uk/id/local-authority/29UP,Tonbridge & Malling Borough Council,1/5/2022,0041033804/3,41033804, 980.50,Morgan Hunt UK Ltd,01086900,,Temporary Staff,Finance Sals&Overheads,D01AFDF1111300,
http://statistics.data.gov.uk/id/local-authority/29UP,Tonbridge & Malling Borough Council,1/5/2022,0041033805/3,41033805, 495.00,KH Recruitment Ltd,01738900,,Temporary Staff,Finance Sals&Overheads,D01AFDF1111300,
http://statistics.data.gov.uk/id/local-authority/29UP,Tonbridge & Malling Borough Council,1/5/2022,0041033806/3,41033806, 3018.21,Rundle & Co Ltd,00087200,,Bailiffs Commission,Local Revenue & NNDR Collect,D41QA000044075,
http://statistics.data.gov.uk/id/local-authority/29UP,Tonbridge & Malling Borough Council,1/5/2022,0041033807/3,41033807, 339.29,Rundle & Co Ltd,00087200,,Bailiffs Commission,Local Revenue & NNDR Collect,D41QA000044075,
http://statistics.data.gov.uk/id/local-authority/29UP,Tonbridge & Malling Borough Council,1/5/2022,0041033817/1,41033817, 20.00,Computershare Voucher Services,01212600,,Childcare Scheme,Finance Sals&Overheads,D01AFDF0911136,
http://statistics.data.gov.uk/id/local-authority/29UP,Tonbridge & Malling Borough Council,1/5/2022,0041033817/2,41033817, 0.80,Computershare Voucher Services,01212600,,National Insurance,Finance Sals&Overheads,D01AFDF0911191,
http://statistics.data.gov.uk/id/local-authority/29UP,Tonbridge & Malling Borough Council,1/5/2022,0041033817/3,41033817, 50.00,Computershare Voucher Services,01212600,,Childcare Scheme,Legal Sals&Overheads,D01ARDR0011136,
http://statistics.data.gov.uk/id/local-authority/29UP,Tonbridge & Malling Borough Council,1/5/2022,0041033817/4,41033817, 2.00,Computershare Voucher Services,01212600,,National Insurance,Legal Sals&Overheads,D01ARDR0011191,
http://statistics.data.gov.uk/id/local-authority/29UP,Tonbridge & Malling Borough Council,1/5/2022,0041033817/5,41033817, 20.00,Computershare Voucher Services,01212600,,Childcare Scheme,Env Hlth & Hsg Sals&Overheads,D01AVDV0211136,
http://statistics.data.gov.uk/id/local-authority/29UP,Tonbridge & Malling Borough Council,1/5/2022,0041033817/6,41033817, 0.80,Computershare Voucher Services,01212600,,National Insurance,Env Hlth & Hsg Sals&Overheads,D01AVDV0211191,
http://statistics.data.gov.uk/id/local-authority/29UP,Tonbridge & Malling Borough Council,1/5/2022,0041033817/7,41033817, 243.00,Computershare Voucher Services,01212600,,Childcare Scheme,Env Hlth & Hsg Sals&Overheads,D01AVDV0711136,
http://statistics.data.gov.uk/id/local-authority/29UP,Tonbridge & Malling Borough Council,1/5/2022,0041033817/8,41033817, 9.72,Computershare Voucher Services,01212600,,National Insurance,Env Hlth & Hsg Sals&Overheads,D01AVDV0711191,
http://statistics.data.gov.uk/id/local-authority/29UP,Tonbridge & Malling Borough Council,1/5/2022,0041033819/1,41033819, 36.00,YESpay International Limited,01068000,991280207,Contract Services,Banking Arrangements,D43QK000044005,
http://statistics.data.gov.uk/id/local-authority/29UP,Tonbridge & Malling Borough Council,1/5/2022,0051008633/1,51008633, 500.00,Jobs Go Public Limited,00556100,,Recruitment Advertising,Recruitment Expenses,D10DADR0013110,510010532
http://statistics.data.gov.uk/id/local-authority/29UP,Tonbridge & Malling Borough Council,1/6/2022,0041033824/1,41033824, 15.00,WorldPay ,01568000,,Credit Card Commission,Banking Arrangements,D43QK000044082,
http://statistics.data.gov.uk/id/local-authority/29UP,Tonbridge & Malling Borough Council,1/6/2022,0041033825/1,41033825, 132.04,WorldPay ,01568000,,Credit Card Commission,Banking Arrangements,D43QK000044082,
http://statistics.data.gov.uk/id/local-authority/29UP,Tonbridge & Malling Borough Council,1/6/2022,0041033826/1,41033826, 781.61,WorldPay ,01568000,,Credit Card Commission,Banking Arrangements,D43QK000044082,
http://statistics.data.gov.uk/id/local-authority/29UP,Tonbridge & Malling Borough Council,1/11/2022,0041033845/1,41033845, 197.12,King & Shaxson Investments,01411100,,Professional Fees,Treasury Management,D43QT000044001,
http://statistics.data.gov.uk/id/local-authority/29UP,Tonbridge & Malling Borough Council,1/11/2022,0041033846/1,41033846, 15.20,HSBC Bank Plc,01740800,,Bank Charges,Banking Arrangements,D43QK000044222,
http://statistics.data.gov.uk/id/local-authority/29UP,Tonbridge & Malling Borough Council,1/12/2022,0011043689/1,11043689, 182.07,KM Media Group Ltd,00053900,,Advertising General,Licences - Fee Paying,H27SHZ99944216,110069375
http://statistics.data.gov.uk/id/local-authority/29UP,Tonbridge & Malling Borough Council,1/12/2022,0011043690/1,11043690, 3421.42,Wallgate Ltd,00850000,,BRREP General Maintenance,PC - General,M15JAP10001900,110069260
http://statistics.data.gov.uk/id/local-authority/29UP,Tonbridge & Malling Borough Council,1/12/2022,0011043691/1,11043691, 148.00,Chillmech Limited,00978700,,BRREP Servicing-Air Condition,Angel Centre,M15HAP20001935,110069361
http://statistics.data.gov.uk/id/local-authority/29UP,Tonbridge & Malling Borough Council,1/12/2022,0011043692/1,11043692, 6400.00,Loxton Installations Ltd,01278800,,BRREP Pool hall lighting mntce,Larkfield Leisure Centre,M15HDP20001913,110069245
http://statistics.data.gov.uk/id/local-authority/29UP,Tonbridge & Malling Borough Council,1/12/2022,0011043693/1,11043693, 932.00,BML Building Services Ltd,01505000,,BRREP Hard paving surface rep,Angel Centre,M15HAP20001946,110069308
http://statistics.data.gov.uk/id/local-authority/29UP,Tonbridge & Malling Borough Council,1/12/2022,0011043694/1,11043694, 892.00,BML Building Services Ltd,01505000,,BRREP Hard paving surface rep,Larkfield Leisure Centre,M15HDP20001946,110069304
http://statistics.data.gov.uk/id/local-authority/29UP,Tonbridge & Malling Borough Council,1/12/2022,0011043695/1,11043695, 14.44,KCS,00054200,,Stationery,Admin & Prop Sals&Overheads,D01AA000043003,110069376
http://statistics.data.gov.uk/id/local-authority/29UP,Tonbridge & Malling Borough Council,1/12/2022,0011043696/1,11043696, 416.00,BML Building Services Ltd,01505000,,BRREP Response - General,Leis Man Poult Wood Golf Centr,M15HEP50001997,
http://statistics.data.gov.uk/id/local-authority/29UP,Tonbridge & Malling Borough Council,1/12/2022,0011043697/1,11043697, 366.00,BML Building Services Ltd,01505000,,BRREP Window/door repairs,Larkfield Leisure Centre,M15HDP20001919,
http://statistics.data.gov.uk/id/local-authority/29UP,Tonbridge & Malling Borough Council,1/12/2022,0011043698/1,11043698, 816.00,BML Building Services Ltd,01505000,,BRREP Response - General,Pleasure Grounds & Open Spaces,M15HHP50001997,
http://statistics.data.gov.uk/id/local-authority/29UP,Tonbridge & Malling Borough Council,1/12/2022,0011043699/1,11043699, 80.00,BML Building Services Ltd,01505000,,BRREP Response - General,Larkfield Leisure Centre,M15HDP50001997,
http://statistics.data.gov.uk/id/local-authority/29UP,Tonbridge & Malling Borough Council,1/12/2022,0011043700/1,11043700, 316.00,BML Building Services Ltd,01505000,,BRREP Response - General,Larkfield Leisure Centre,M15HDP50001997,
http://statistics.data.gov.uk/id/local-authority/29UP,Tonbridge & Malling Borough Council,1/12/2022,0011043701/1,11043701, 1134.00,Venn Group Ltd,00914300,,Temporary Staff,Legal Sals&Overheads,D01ARDR0011300,
http://statistics.data.gov.uk/id/local-authority/29UP,Tonbridge & Malling Borough Council,1/12/2022,0011043702/1,11043702, 1134.00,Venn Group Ltd,00914300,,Temporary Staff,Legal Sals&Overheads,D01ARDR0011300,
http://statistics.data.gov.uk/id/local-authority/29UP,Tonbridge & Malling Borough Council,1/12/2022,0011043703/1,11043703, 660.00,KH Recruitment Ltd,01738900,,Temporary Staff,Admin & Prop Sals&Overheads,D01AADA1211300,
http://statistics.data.gov.uk/id/local-authority/29UP,Tonbridge & Malling Borough Council,1/12/2022,0011043704/1,11043704, 300.00,Francis Taylor Building,01688700,,Other Planning Enq - Legal Cos,Legal Sals&Overheads,D01ARDR0044146,
http://statistics.data.gov.uk/id/local-authority/29UP,Tonbridge & Malling Borough Council,1/12/2022,0011043705/1,11043705, 744.00,Thomson Snell & Passmore,00101700,,Legal Fees,Legal Sals&Overheads,D01ARDR0044002,
http://statistics.data.gov.uk/id/local-authority/29UP,Tonbridge & Malling Borough Council,1/12/2022,0011043706/1,11043706, 496.00,Thomson Snell & Passmore,00101700,,Legal Fees,Legal Sals&Overheads,D01ARDR0044002,
http://statistics.data.gov.uk/id/local-authority/29UP,Tonbridge & Malling Borough Council,1/12/2022,0011043707/1,11043707, 1040.00,Disclosure & Barring Service,00865900,,Professional Fees,Licences - Fee Paying,H27SH000044001,
http://statistics.data.gov.uk/id/local-authority/29UP,Tonbridge & Malling Borough Council,1/12/2022,0011043708/1,11043708, 310.00,Thomson Snell & Passmore,00101700,,Legal Fees,Legal Sals&Overheads,D01ARDR0044002,
http://statistics.data.gov.uk/id/local-authority/29UP,Tonbridge & Malling Borough Council,1/12/2022,0011043709/1,11043709, 487.50,Thomson Snell & Passmore,00101700,,Legal Fees,Legal Sals&Overheads,D01ARDR0044002,
http://statistics.data.gov.uk/id/local-authority/29UP,Tonbridge & Malling Borough Council,1/12/2022,0011043710/1,11043710, 1178.00,Thomson Snell & Passmore,00101700,,Legal Fees,Legal Sals&Overheads,D01ARDR0044002,
http://statistics.data.gov.uk/id/local-authority/29UP,Tonbridge & Malling Borough Council,1/12/2022,0011043711/1,11043711, 105.00,REDACTED PERSONAL DATA,00012900,,Postages - PPI / Walksort,I T Sals&Overheads,D01AN000045017,
http://statistics.data.gov.uk/id/local-authority/29UP,Tonbridge & Malling Borough Council,1/12/2022,0011043712/1,11043712, 8.75,REDACTED PERSONAL DATA,00012900,,Postages - PPI / Walksort,I T Sals&Overheads,D01AN000045017,
http://statistics.data.gov.uk/id/local-authority/29UP,Tonbridge & Malling Borough Council,1/12/2022,0011043713/1,11043713, 386.05,Finch House,01497200,,H&CG Fund Council Specific,Eco Dev & Reg Gen Bus Support,D52TD000047027,
http://statistics.data.gov.uk/id/local-authority/29UP,Tonbridge & Malling Borough Council,1/12/2022,0012008216/3,12008216, 816.75,Canon (UK) Limited,00298700,,Maintenance - Ancillary Equip,Information Technology,D27KD000040137,
http://statistics.data.gov.uk/id/local-authority/29UP,Tonbridge & Malling Borough Council,1/12/2022,0012008217/3,12008217, 12.00,Esendex Limited,01008900,,Leased Lines & Modems,Information Technology,D27KD000045011,
http://statistics.data.gov.uk/id/local-authority/29UP,Tonbridge & Malling Borough Council,1/12/2022,0012008218/1,12008218, 279.93,Kingsfield Computer Products Ltd,00942800,,Purchases,Information Technology,D27KD000040101,410032100
http://statistics.data.gov.uk/id/local-authority/29UP,Tonbridge & Malling Borough Council,1/12/2022,0012008218/2,12008218, 113.97,Kingsfield Computer Products Ltd,00942800,,Purchases,Information Technology,D27KD000040101,410032100
http://statistics.data.gov.uk/id/local-authority/29UP,Tonbridge & Malling Borough Council,1/12/2022,0012008218/3,12008218, 7.95,Kingsfield Computer Products Ltd,00942800,,Delivery Expenses,Information Technology,D27KD000044069,410032100
http://statistics.data.gov.uk/id/local-authority/29UP,Tonbridge & Malling Borough Council,1/12/2022,0012008219/1,12008219, 179.99,Kingsfield Computer Products Ltd,00942800,,Purchases,Env Hlth & Hsg Sals&Overheads,D01AVDV0240101,410032101
http://statistics.data.gov.uk/id/local-authority/29UP,Tonbridge & Malling Borough Council,1/12/2022,0012008219/2,12008219, 7.95,Kingsfield Computer Products Ltd,00942800,,Purchases,Env Hlth & Hsg Sals&Overheads,D01AVDV0240101,410032101
http://statistics.data.gov.uk/id/local-authority/29UP,Tonbridge & Malling Borough Council,1/12/2022,0012008220/1,12008220, 1465.00,Perfect Colours,01672500,,Maintenance - Ancillary Equip,Information Technology,D27KD000040137,410032110
http://statistics.data.gov.uk/id/local-authority/29UP,Tonbridge & Malling Borough Council,1/12/2022,0012008221/1,12008221, 11.65,Daisy Communications,01068100,,Telephones - General,Leybourne Lakes Country Park,B22LK000045010,
http://statistics.data.gov.uk/id/local-authority/29UP,Tonbridge & Malling Borough Council,1/12/2022,0012008221/2,12008221, 1.90,Daisy Communications,01068100,,Telephones - Rentals,General Admin Telephones,D24GT000045005,
http://statistics.data.gov.uk/id/local-authority/29UP,Tonbridge & Malling Borough Council,1/12/2022,0012008221/3,12008221, 252.91,Daisy Communications,01068100,,Telephones - Call Costs,General Admin Telephones,D24GT000045006,
http://statistics.data.gov.uk/id/local-authority/29UP,Tonbridge & Malling Borough Council,1/12/2022,0012008221/4,12008221, 243.88,Daisy Communications,01068100,,Leased Lines & Modems,Information Technology,D27KD000045011,
http://statistics.data.gov.uk/id/local-authority/29UP,Tonbridge & Malling Borough Council,1/12/2022,0012008221/5,12008221, 65.88,Daisy Communications,01068100,,Maintenance - General,Security Services Management,E09GA000040135,
http://statistics.data.gov.uk/id/local-authority/29UP,Tonbridge & Malling Borough Council,1/12/2022,0012008222/1,12008222, 7066.70,Ebase Technology Limited,00895300,,Software Hire & Support,Information Technology,D27KD000044059,
http://statistics.data.gov.uk/id/local-authority/29UP,Tonbridge & Malling Borough Council,1/12/2022,0012008223/1,12008223, 7762.21,Civica UK Ltd,01051800,,Software Hire & Support,Information Technology,D27KD000044059,
http://statistics.data.gov.uk/id/local-authority/29UP,Tonbridge & Malling Borough Council,1/12/2022,0012008223/2,12008223, 1070.65,Civica UK Ltd,01051800,,Software Hire & Support,Information Technology,D27KD000044059,
http://statistics.data.gov.uk/id/local-authority/29UP,Tonbridge & Malling Borough Council,1/12/2022,0021037658/3,21037658, 6.00,G.L. & R.G. Bourne,00737500,,Gates / Security,Haysden Country Park,B22LC000044017,
http://statistics.data.gov.uk/id/local-authority/29UP,Tonbridge & Malling Borough Council,1/12/2022,0021037659/1,21037659, 544.98,G.L. & R.G. Bourne,00737500,,Gates / Security,Haysden Country Park,B22LC000044017,210056214
http://statistics.data.gov.uk/id/local-authority/29UP,Tonbridge & Malling Borough Council,1/12/2022,0021037660/1,21037660, 74.71,G.L. & R.G. Bourne,00737500,,Gates / Security,Haysden Country Park,B22LC000044017,210056214
http://statistics.data.gov.uk/id/local-authority/29UP,Tonbridge & Malling Borough Council,1/12/2022,0021037661/3,21037661, 69.50,G.L. & R.G. Bourne,00737500,,Maintenance of Grounds,Haysden Country Park,B22LC000020402,
http://statistics.data.gov.uk/id/local-authority/29UP,Tonbridge & Malling Borough Council,1/12/2022,0021037662/1,21037662, 4.80,G.L. & R.G. Bourne,00737500,,Gates / Security,Haysden Country Park,B22LC000044017,210056214
http://statistics.data.gov.uk/id/local-authority/29UP,Tonbridge & Malling Borough Council,1/12/2022,0021037663/1,21037663, 16.16,Scottish Water Business Stream Ltd,01641100,,Sewerage Charges,Cemetery,B26MP000024003,
http://statistics.data.gov.uk/id/local-authority/29UP,Tonbridge & Malling Borough Council,1/12/2022,0021037664/1,21037664, 867.00,Rumwoods Limited,00959000,,Tree Planting Schemes,Countryside/Woodland Mgt,B22LH000020405,210056594
http://statistics.data.gov.uk/id/local-authority/29UP,Tonbridge & Malling Borough Council,1/12/2022,0021037665/3,21037665, 60.18,Initial Washroom Hygiene,00048300,,Cleaning & Domestic Supplies,Haysden Country Park,B22LC000026001,
http://statistics.data.gov.uk/id/local-authority/29UP,Tonbridge & Malling Borough Council,1/12/2022,0021037666/3,21037666, 56.78,Initial Washroom Hygiene,00048300,,Cleaning & Domestic Supplies,Haysden Country Park,B22LC000026001,
http://statistics.data.gov.uk/id/local-authority/29UP,Tonbridge & Malling Borough Council,1/12/2022,0021037667/3,21037667, 56.78,Initial Washroom Hygiene,00048300,,Cleaning & Domestic Supplies,Haysden Country Park,B22LC000026001,
http://statistics.data.gov.uk/id/local-authority/29UP,Tonbridge & Malling Borough Council,1/12/2022,0021037668/3,21037668, 56.78,Initial Washroom Hygiene,00048300,,Cleaning & Domestic Supplies,Haysden Country Park,B22LC000026001,
http://statistics.data.gov.uk/id/local-authority/29UP,Tonbridge & Malling Borough Council,1/12/2022,0021037669/3,21037669, 60.18,Initial Washroom Hygiene,00048300,,Cleaning & Domestic Supplies,Haysden Country Park,B22LC000026001,
http://statistics.data.gov.uk/id/local-authority/29UP,Tonbridge & Malling Borough Council,1/12/2022,0021037670/3,21037670, 60.18,Initial Washroom Hygiene,00048300,,Cleaning & Domestic Supplies,Haysden Country Park,B22LC000026001,
http://statistics.data.gov.uk/id/local-authority/29UP,Tonbridge & Malling Borough Council,1/12/2022,0021037671/3,21037671, 60.18,Initial Washroom Hygiene,00048300,,Cleaning & Domestic Supplies,Haysden Country Park,B22LC000026001,
http://statistics.data.gov.uk/id/local-authority/29UP,Tonbridge & Malling Borough Council,1/12/2022,0021037673/1,21037673, 1240.60,Martin Square Traders Association,00904000,,Borough Christmas Lighting,Eco Dev & Reg Boro Chris Light,D52TE000047014,
http://statistics.data.gov.uk/id/local-authority/29UP,Tonbridge & Malling Borough Council,1/12/2022,0021037674/1,21037674, 13700.00,Farol Ltd,01809200,,Initial Furniture & Equipment,Capital Renewals Leisure,P05KGBC0309906,210056403
http://statistics.data.gov.uk/id/local-authority/29UP,Tonbridge & Malling Borough Council,1/12/2022,0021037675/1,21037675, 22000.00,Farol Ltd,01809200,,Initial Furniture & Equipment,Capital Renewals Leisure,P05KGBC0309906,210056402
http://statistics.data.gov.uk/id/local-authority/29UP,Tonbridge & Malling Borough Council,1/12/2022,0021037676/1,21037676, 23250.00,Farol Ltd,01809200,,Initial Furniture & Equipment,Capital Renewals Leisure,P05KGBC0309906,220003132
http://statistics.data.gov.uk/id/local-authority/29UP,Tonbridge & Malling Borough Council,1/12/2022,0021037678/1,21037678, 1200.00,Farol Ltd,01809200,,Initial Furniture & Equipment,Capital Renewals Leisure,P05KGBC0309906,220003133
http://statistics.data.gov.uk/id/local-authority/29UP,Tonbridge & Malling Borough Council,1/12/2022,0021037679/1,21037679, 13.00,REDACTED PERSONAL DATA,01217300,,Youth Initiatives,Youth Partnerships,B33PG000048124,
http://statistics.data.gov.uk/id/local-authority/29UP,Tonbridge & Malling Borough Council,1/12/2022,0021037680/1,21037680, 1500.00,Drainage & Groundwork Partnership,01821100,703063577,Maintenance of Grounds,Sports Grounds,B13ET000020402,210056573
http://statistics.data.gov.uk/id/local-authority/29UP,Tonbridge & Malling Borough Council,1/12/2022,0021037681/1,21037681, 11000.00,Lawrence Container Hire Ltd,01033800,,Other Expenses,LLCP Facility Improv,P05FF000009908,210056610
http://statistics.data.gov.uk/id/local-authority/29UP,Tonbridge & Malling Borough Council,1/12/2022,0021037682/3,21037682, 19.04,B&Q/Screwfix Direct(TradeUKAccount),00141300,,Protective Clothing,Patrolling,B22LF000042001,
http://statistics.data.gov.uk/id/local-authority/29UP,Tonbridge & Malling Borough Council,1/12/2022,0021037683/1,21037683, 950.00,LLoyd Bore Ltd,01818500,,Professional Fees,Open Spaces & Amenity Areas,B22LE000044001,210056536
http://statistics.data.gov.uk/id/local-authority/29UP,Tonbridge & Malling Borough Council,1/12/2022,0021037684/1,21037684, 362.90,Automated Limited,00007000,,Initial Furniture & Equipment,Capital Renewals Leisure,P05KGBC0409906,210056574
http://statistics.data.gov.uk/id/local-authority/29UP,Tonbridge & Malling Borough Council,1/12/2022,0022026147/1,22026147, 3754.97,Clarion Housing,01776300,,Temporary Accommodation,Homelessness,C01AA000044051,
http://statistics.data.gov.uk/id/local-authority/29UP,Tonbridge & Malling Borough Council,1/12/2022,0022026148/1,22026148, 680.00,Counterweight LTD,01506600,,Healthy Living Initiatives,Public Health - Healthy Living,H40SY000048145,220003186
http://statistics.data.gov.uk/id/local-authority/29UP,Tonbridge & Malling Borough Council,1/12/2022,0022026149/3,22026149, 400.00,Green Recycling LTD,01563000,,Paper Recycling,Dry Recycling,H34SR000054024,
http://statistics.data.gov.uk/id/local-authority/29UP,Tonbridge & Malling Borough Council,1/12/2022,0022026150/1,22026150, 3518.50,House to Home Lettings Ltd ,01647600,,Temporary Accommodation,Homelessness,C01AA000044051,
http://statistics.data.gov.uk/id/local-authority/29UP,Tonbridge & Malling Borough Council,1/12/2022,0022026151/1,22026151, 150.00,Originzone,01799700,,Publicity & Promotion,Dry Recycling,H34SRZ99944217,220003182
http://statistics.data.gov.uk/id/local-authority/29UP,Tonbridge & Malling Borough Council,1/12/2022,0022026152/1,22026152, 1550.00,Smart Property Professionals,01815100,,Temporary Accommodation,Homelessness,C01AA000044051,
http://statistics.data.gov.uk/id/local-authority/29UP,Tonbridge & Malling Borough Council,1/12/2022,0022026157/1,22026157, 220.00,Counterweight LTD,01506600,,Healthy Living Initiatives,Public Health - Healthy Living,H40SYVH0048145,220003187
http://statistics.data.gov.uk/id/local-authority/29UP,Tonbridge & Malling Borough Council,1/12/2022,0022026158/3,22026158, 648.00,The Oyster Partnership,01196400,,Temporary Staff,Env Hlth & Hsg Sals&Overheads,D01AVDV0711300,
http://statistics.data.gov.uk/id/local-authority/29UP,Tonbridge & Malling Borough Council,1/12/2022,0022026159/1,22026159, 437.40,Peabody South East LTD,01680900,,Countywide DFG Project,Private Sector Housing Renewal,C03BD000044031,
http://statistics.data.gov.uk/id/local-authority/29UP,Tonbridge & Malling Borough Council,1/12/2022,0022026160/1,22026160, 190.00,Peabody South East LTD,01680900,,Countywide DFG Project,Private Sector Housing Renewal,C03BD000044031,
http://statistics.data.gov.uk/id/local-authority/29UP,Tonbridge & Malling Borough Council,1/12/2022,0022026161/1,22026161, 6352.00,Simply Rented Ltd ,01691400,,Temporary Accommodation,Homelessness,C01AA000044051,
http://statistics.data.gov.uk/id/local-authority/29UP,Tonbridge & Malling Borough Council,1/12/2022,0022026162/3,22026162, 15702.00,SPA CAFFE LIMITED,00127100,,Temporary Accommodation,Homelessness,C01AA000044051,
http://statistics.data.gov.uk/id/local-authority/29UP,Tonbridge & Malling Borough Council,1/12/2022,0022026164/1,22026164, 7.44,REDACTED PERSONAL DATA,01175600,,Food Sampling,Food & Safety - Food Safety,H35SX000054011,
http://statistics.data.gov.uk/id/local-authority/29UP,Tonbridge & Malling Borough Council,1/12/2022,0022026166/1,22026166, 64066.00,Paramount Independent Property Suppliers,01595300,,Temporary Accommodation,Homelessness,C01AA000044051,
http://statistics.data.gov.uk/id/local-authority/29UP,Tonbridge & Malling Borough Council,1/12/2022,0022026168/1,22026168, 2452.00,1st  Steps Housing Kent,01716100,,Temporary Accommodation,Homelessness,C01AA000044051,
http://statistics.data.gov.uk/id/local-authority/29UP,Tonbridge & Malling Borough Council,1/12/2022,0022026169/1,22026169, 10044.00,Simon Niblett Lettings,00072600,,Temporary Accommodation,Homelessness,C01AA000044051,
http://statistics.data.gov.uk/id/local-authority/29UP,Tonbridge & Malling Borough Council,1/12/2022,0022026170/1,22026170, 3410.00,Simon Niblett Lettings,00072600,,Temporary Accommodation,Homelessness,C01AA000044051,
http://statistics.data.gov.uk/id/local-authority/29UP,Tonbridge & Malling Borough Council,1/12/2022,0022026171/1,22026171, 5950.00,Dolphin Stairlifts,00698900,,Other Expenses,Disabled Facilities Grant Mand,P03AC000009908,
http://statistics.data.gov.uk/id/local-authority/29UP,Tonbridge & Malling Borough Council,1/12/2022,0022026172/1,22026172, 667.00,Countrystyle Group,00835900,781981681,Plastic Recycling,Dry Recycling,H34SR000054019,
http://statistics.data.gov.uk/id/local-authority/29UP,Tonbridge & Malling Borough Council,1/12/2022,0022026173/1,22026173, 2263.80,Ward Security LTD,01490000,,Dog Warden,Street Scene,H23SD000044100,
http://statistics.data.gov.uk/id/local-authority/29UP,Tonbridge & Malling Borough Council,1/12/2022,0022026174/1,22026174, 2226.57,The Care Group-Housing & Care Trust,01699600,,Temporary Accommodation,Homelessness,C01AA000044051,
http://statistics.data.gov.uk/id/local-authority/29UP,Tonbridge & Malling Borough Council,1/12/2022,0022026175/1,22026175, 29406.50,Social & Community Care,01768400,,Temporary Accommodation,Homelessness,C01AA000044051,
http://statistics.data.gov.uk/id/local-authority/29UP,Tonbridge & Malling Borough Council,1/12/2022,0022026176/1,22026176, 1550.00,Kent Housing,01503200,,Temporary Accommodation,Homelessness,C01AA000044051,
http://statistics.data.gov.uk/id/local-authority/29UP,Tonbridge & Malling Borough Council,1/12/2022,0022026177/3,22026177, 2074.80,Lucy and Martin Recycling LTD,01694200,,Vehicle Licences,Dry Recycling,H34SR000030105,
http://statistics.data.gov.uk/id/local-authority/29UP,Tonbridge & Malling Borough Council,1/12/2022,0022026178/1,22026178, 777.70,Clarion Housing,01776300,,Rent Deposit / Rent in Advance,Homelessness,C01AAC83644093,
http://statistics.data.gov.uk/id/local-authority/29UP,Tonbridge & Malling Borough Council,1/12/2022,0031018375/3,31018375, 156.30,British Telecommunications Plc,00012800,,Maintenance - General,Security Services Management,E09GA000040135,
http://statistics.data.gov.uk/id/local-authority/29UP,Tonbridge & Malling Borough Council,1/12/2022,0031018376/3,31018376, 222.00,Arnold & Court Ltd,01411300,,Winter Maintenance,Parking Off-Street,E10HA000020701,
http://statistics.data.gov.uk/id/local-authority/29UP,Tonbridge & Malling Borough Council,1/12/2022,0031018377/3,31018377, 406.38,Arnold & Court Ltd,01411300,,Winter Maintenance,Parking Off-Street,E10HA000020701,
http://statistics.data.gov.uk/id/local-authority/29UP,Tonbridge & Malling Borough Council,1/12/2022,0031018378/3,31018378, 328.56,Arnold & Court Ltd,01411300,,Maintenance of Grounds,Sports Grounds,B13ET000020402,
http://statistics.data.gov.uk/id/local-authority/29UP,Tonbridge & Malling Borough Council,1/12/2022,0031018378/4,31018378, 144.28,Arnold & Court Ltd,01411300,,Maintenance of Grounds,Churchyards St Peter & St Paul,B28MX000020402,
http://statistics.data.gov.uk/id/local-authority/29UP,Tonbridge & Malling Borough Council,1/12/2022,0031018378/5,31018378, 57.16,Arnold & Court Ltd,01411300,,Winter Maintenance,Parking Off-Street,E10HA000020701,
http://statistics.data.gov.uk/id/local-authority/29UP,Tonbridge & Malling Borough Council,1/12/2022,0031018379/3,31018379, 400.00,Arnold & Court Ltd,01411300,,Repair & Mtce of Fixed Plant,Boro Highways & Emergency Oper,E01AA000020501,
http://statistics.data.gov.uk/id/local-authority/29UP,Tonbridge & Malling Borough Council,1/12/2022,0031018379/4,31018379, 202.00,Arnold & Court Ltd,01411300,,Purchases,Boro Highways & Emergency Oper,E01AA000040101,
http://statistics.data.gov.uk/id/local-authority/29UP,Tonbridge & Malling Borough Council,1/12/2022,0031018380/3,31018380, 205.00,Arnold & Court Ltd,01411300,,Premises Repairs & Maintenance,Parking Off-Street,E10HAE02120601,
http://statistics.data.gov.uk/id/local-authority/29UP,Tonbridge & Malling Borough Council,1/12/2022,0031018380/4,31018380, 205.00,Arnold & Court Ltd,01411300,,Premises Repairs & Maintenance,Parking Off-Street,E10HAE04020601,
http://statistics.data.gov.uk/id/local-authority/29UP,Tonbridge & Malling Borough Council,1/12/2022,0031018381/1,31018381, 400.00,Arnold & Court Ltd,01411300,,Contract Payments,Boro Drainage & Land Drainage,E20MA000054001,310042725
http://statistics.data.gov.uk/id/local-authority/29UP,Tonbridge & Malling Borough Council,1/12/2022,0031018382/3,31018382, 890.02,CDER Group,01773300,,Adjudication & Enforcement Ser,Parking Off-Street,E10HA000044230,
http://statistics.data.gov.uk/id/local-authority/29UP,Tonbridge & Malling Borough Council,1/12/2022,0031018383/1,31018383, 3750.00,Chroma Vision Ltd,00891600,,CCTV Monitoring Station,Security Services Management,E09GA000051020,310042616
http://statistics.data.gov.uk/id/local-authority/29UP,Tonbridge & Malling Borough Council,1/12/2022,0031018384/1,31018384, 410.00,Wellden Land Surveys,01410600,,Professional Fees,Boro Drainage & Land Drainage,E20MA000044001,310042644
http://statistics.data.gov.uk/id/local-authority/29UP,Tonbridge & Malling Borough Council,1/12/2022,0031018385/1,31018385, 498.00,C. S. Mitchell LTD,01704800,,Premises Repairs & Maintenance,Parking Off-Street,E10HA000020601,310042745
http://statistics.data.gov.uk/id/local-authority/29UP,Tonbridge & Malling Borough Council,1/12/2022,0031018386/1,31018386, 441.50,C. S. Mitchell LTD,01704800,,Maintenance of Grounds,Open Spaces & Amenity Areas,B22LE000020402,
http://statistics.data.gov.uk/id/local-authority/29UP,Tonbridge & Malling Borough Council,1/12/2022,0031018387/1,31018387, 65.47,Shell U.K. Oil Products Limited,01673300,,"Petrol, Diesel & Oil",Patrolling,B22LF000030106,
http://statistics.data.gov.uk/id/local-authority/29UP,Tonbridge & Malling Borough Council,1/12/2022,0031018387/2,31018387, 63.81,Shell U.K. Oil Products Limited,01673300,,"Petrol, Diesel & Oil",Parking Off-Street,E10HA000030106,
http://statistics.data.gov.uk/id/local-authority/29UP,Tonbridge & Malling Borough Council,1/12/2022,0031018387/3,31018387, 63.81,Shell U.K. Oil Products Limited,01673300,,"Petrol, Diesel & Oil",Parking On-Street,E10HD000030106,
http://statistics.data.gov.uk/id/local-authority/29UP,Tonbridge & Malling Borough Council,1/12/2022,0031018388/1,31018388, 1390.00,Marston,01485000,,Adjudication & Enforcement Ser,Parking Off-Street,E10HA000044230,
http://statistics.data.gov.uk/id/local-authority/29UP,Tonbridge & Malling Borough Council,1/12/2022,0031018394/1,31018394, 2988.00,A Osborne Electrical Limited,01823800,,Initial Furniture & Equipment,Hybrid / Electric Car,P06EZ000009906,310042755
http://statistics.data.gov.uk/id/local-authority/29UP,Tonbridge & Malling Borough Council,1/12/2022,0031018395/3,31018395, 156.30,British Telecommunications Plc,00012800,,Maintenance - General,Security Services Management,E09GA000040135,
http://statistics.data.gov.uk/id/local-authority/29UP,Tonbridge & Malling Borough Council,1/12/2022,0031018396/1,31018396, 2.73,Npower Ltd,01675800,,Electricity,Parking Off-Street,E10HA000021002,
http://statistics.data.gov.uk/id/local-authority/29UP,Tonbridge & Malling Borough Council,1/12/2022,0031018396/2,31018396, 68.94,Npower Ltd,01675800,,Electricity,Parking Off-Street,E10HA000021002,
http://statistics.data.gov.uk/id/local-authority/29UP,Tonbridge & Malling Borough Council,1/12/2022,0031018397/1,31018397, 6.81,Npower Ltd,01675800,,Electricity,Parking Off-Street,E10HA000021002,
http://statistics.data.gov.uk/id/local-authority/29UP,Tonbridge & Malling Borough Council,1/12/2022,0031018397/2,31018397, 150.44,Npower Ltd,01675800,,Electricity,Parking Off-Street,E10HA000021002,
http://statistics.data.gov.uk/id/local-authority/29UP,Tonbridge & Malling Borough Council,1/12/2022,0031018398/1,31018398, 1.22,Npower Ltd,01675800,,Electricity,Parking Off-Street,E10HA000021002,
http://statistics.data.gov.uk/id/local-authority/29UP,Tonbridge & Malling Borough Council,1/12/2022,0031018398/2,31018398, 31.95,Npower Ltd,01675800,,Electricity,Parking Off-Street,E10HA000021002,
http://statistics.data.gov.uk/id/local-authority/29UP,Tonbridge & Malling Borough Council,1/12/2022,0032009359/1,32009359, 3860.00,Kent County Council,00322500,,Application & Appeals,Development Management,A01AB000044194,320003307
http://statistics.data.gov.uk/id/local-authority/29UP,Tonbridge & Malling Borough Council,1/12/2022,0032009360/1,32009360, 3500.00,Kent Wildlife Trust,01022300,,Local Wildlife Sites Register,Planning Policy,A01AF000044168,320003370
http://statistics.data.gov.uk/id/local-authority/29UP,Tonbridge & Malling Borough Council,1/12/2022,0032009361/3,32009361, 165.00,Seymour & Saunders Electrical Ltd,01500300,467735604,Competent Persons Schemes,Building Control,A01AD000048116,
http://statistics.data.gov.uk/id/local-authority/29UP,Tonbridge & Malling Borough Council,1/12/2022,0032009362/3,32009362, 1264.40,Tunbridge Wells Borough Council,00844600,,Temporary Staff,Planning Sals&Overheads,D01AJDJ0311300,
http://statistics.data.gov.uk/id/local-authority/29UP,Tonbridge & Malling Borough Council,1/12/2022,0041033820/3,41033820, 495.00,KH Recruitment Ltd,01738900,,Temporary Staff,Finance Sals&Overheads,D01AFDF1111300,
http://statistics.data.gov.uk/id/local-authority/29UP,Tonbridge & Malling Borough Council,1/12/2022,0041033821/3,41033821, 338.25,KH Recruitment Ltd,01738900,,Temporary Staff,Finance Sals&Overheads,D01AFDF1111300,
http://statistics.data.gov.uk/id/local-authority/29UP,Tonbridge & Malling Borough Council,1/12/2022,0041033822/1,41033822, 200.00,Society of District Council Treasurers,01047700,,Subscriptions,Finance Sals&Overheads,D01AF000047002,
http://statistics.data.gov.uk/id/local-authority/29UP,Tonbridge & Malling Borough Council,1/12/2022,0041033827/3,41033827, 837.50,Morgan Hunt UK Ltd,01086900,,Temporary Staff,Finance Sals&Overheads,D01AFDF1111300,
http://statistics.data.gov.uk/id/local-authority/29UP,Tonbridge & Malling Borough Council,1/12/2022,0041033830/3,41033830, 980.50,Morgan Hunt UK Ltd,01086900,,Temporary Staff,Finance Sals&Overheads,D01AFDF1111300,
http://statistics.data.gov.uk/id/local-authority/29UP,Tonbridge & Malling Borough Council,1/12/2022,0041033831/3,41033831, 675.00,Morgan Hunt UK Ltd,01086900,,Temporary Staff,Finance Sals&Overheads,D01AFDF1111300,
http://statistics.data.gov.uk/id/local-authority/29UP,Tonbridge & Malling Borough Council,1/12/2022,0041033832/3,41033832, 927.50,Morgan Hunt UK Ltd,01086900,,Temporary Staff,Finance Sals&Overheads,D01AFDF1111300,
http://statistics.data.gov.uk/id/local-authority/29UP,Tonbridge & Malling Borough Council,1/12/2022,0041033833/1,41033833, 950.00,NEC Software Solutions UK Ltd,01073900,202159745,Software Enhancement,Local Revenue & NNDR Collect,D41QA000044063,410032099
http://statistics.data.gov.uk/id/local-authority/29UP,Tonbridge & Malling Borough Council,1/12/2022,0041033834/1,41033834, 88.02,Adelante Software Limited,01393800,812115871,Credit Card Commission,Banking Arrangements,D43QK000044082,
http://statistics.data.gov.uk/id/local-authority/29UP,Tonbridge & Malling Borough Council,1/12/2022,0041033836/1,41033836, 60.00,REDACTED PERSONAL DATA,01828400,,Compensation Scheme,Local Revenue & NNDR Collect,D41QA000060120,
http://statistics.data.gov.uk/id/local-authority/29UP,Tonbridge & Malling Borough Council,1/12/2022,0041033837/1,41033837, 281.77,Rundle & Co Ltd,00087200,,Bailiffs Commission,Local Revenue & NNDR Collect,D41QA000044075,
http://statistics.data.gov.uk/id/local-authority/29UP,Tonbridge & Malling Borough Council,1/12/2022,0041033838/1,41033838, 518.55,Rundle & Co Ltd,00087200,,Bailiffs Commission,Local Revenue & NNDR Collect,D41QA000044075,
http://statistics.data.gov.uk/id/local-authority/29UP,Tonbridge & Malling Borough Council,1/12/2022,0041033840/1,41033840, 1511.75,Maidstone Borough Council,01173700,,Bailiffs Commission,Local Revenue & NNDR Collect,D41QA000044075,
http://statistics.data.gov.uk/id/local-authority/29UP,Tonbridge & Malling Borough Council,1/12/2022,0041033842/1,41033842, 80.00,WorldPay Ltd,01402000,991280207,Credit Card Commission,Banking Arrangements,D43QK000044082,
http://statistics.data.gov.uk/id/local-authority/29UP,Tonbridge & Malling Borough Council,1/12/2022,0041033842/2,41033842, 49.12,WorldPay Ltd,01402000,991280207,Credit Card Commission,Banking Arrangements,D43QK000044082,
http://statistics.data.gov.uk/id/local-authority/29UP,Tonbridge & Malling Borough Council,1/12/2022,0041033842/3,41033842, 0.08,WorldPay Ltd,01402000,991280207,Credit Card Commission,Banking Arrangements,D43QK000044082,
http://statistics.data.gov.uk/id/local-authority/29UP,Tonbridge & Malling Borough Council,1/12/2022,0041033843/1,41033843, 80.00,WorldPay Ltd,01402000,991280207,Credit Card Commission,Banking Arrangements,D43QK000044082,
http://statistics.data.gov.uk/id/local-authority/29UP,Tonbridge & Malling Borough Council,1/12/2022,0041033843/2,41033843, 44.00,WorldPay Ltd,01402000,991280207,Credit Card Commission,Banking Arrangements,D43QK000044082,
http://statistics.data.gov.uk/id/local-authority/29UP,Tonbridge & Malling Borough Council,1/12/2022,0041033843/3,41033843, 0.72,WorldPay Ltd,01402000,991280207,Credit Card Commission,Banking Arrangements,D43QK000044082,
http://statistics.data.gov.uk/id/local-authority/29UP,Tonbridge & Malling Borough Council,1/12/2022,0041033844/1,41033844, 80.00,WorldPay Ltd,01402000,991280207,Credit Card Commission,Banking Arrangements,D43QK000044082,
http://statistics.data.gov.uk/id/local-authority/29UP,Tonbridge & Malling Borough Council,1/12/2022,0041033844/2,41033844, 144.40,WorldPay Ltd,01402000,991280207,Credit Card Commission,Banking Arrangements,D43QK000044082,
http://statistics.data.gov.uk/id/local-authority/29UP,Tonbridge & Malling Borough Council,1/12/2022,0041033844/3,41033844, 0.24,WorldPay Ltd,01402000,991280207,Credit Card Commission,Banking Arrangements,D43QK000044082,
http://statistics.data.gov.uk/id/local-authority/29UP,Tonbridge & Malling Borough Council,1/12/2022,0051008634/1,51008634, 1390.00,Alpha Parking Ltd,01167300,,Ext Fees/Prof & Tech,Training,D10DCDE0413561,
http://statistics.data.gov.uk/id/local-authority/29UP,Tonbridge & Malling Borough Council,1/13/2022,0041033859/10,41033859, 14.31,National Westminster Bank Plc,00894500,,Software Hire & Support,Information Technology,D27KD000044059,
http://statistics.data.gov.uk/id/local-authority/29UP,Tonbridge & Malling Borough Council,1/13/2022,0041033859/11,41033859, 293.00,National Westminster Bank Plc,00894500,,Legal Fees,Local Revenue & NNDR Collect,D41QA000044002,
http://statistics.data.gov.uk/id/local-authority/29UP,Tonbridge & Malling Borough Council,1/13/2022,0041033859/12,41033859, 382.50,National Westminster Bank Plc,00894500,,Legal Fees,Local Revenue & NNDR Collect,D41QA000044002,
http://statistics.data.gov.uk/id/local-authority/29UP,Tonbridge & Malling Borough Council,1/13/2022,0041033859/13,41033859, 29.47,National Westminster Bank Plc,00894500,,Sales,TIC Stock Account,K18AX000002002,
http://statistics.data.gov.uk/id/local-authority/29UP,Tonbridge & Malling Borough Council,1/13/2022,0041033859/14,41033859, 9.99,National Westminster Bank Plc,00894500,,Sales,TIC Stock Account,K18AX000002002,
http://statistics.data.gov.uk/id/local-authority/29UP,Tonbridge & Malling Borough Council,1/13/2022,0041033859/9,41033859, 119.98,National Westminster Bank Plc,00894500,,Purchases,Customer Services,D23CS000040101,
http://statistics.data.gov.uk/id/local-authority/29UP,Tonbridge & Malling Borough Council,1/18/2022,0041033870/1,41033870, 207.95,National Westminster Bank Plc,00069400,,Bank Charges,Banking Arrangements,D43QK000044222,
http://statistics.data.gov.uk/id/local-authority/29UP,Tonbridge & Malling Borough Council,1/19/2022,0011043714/1,11043714, 56.00,Willow Pumps Ltd,00114100,,BRREP Servicing - Pumping Stn,Tonbridge Swimming Pool,M15HBP20001931,110069172
http://statistics.data.gov.uk/id/local-authority/29UP,Tonbridge & Malling Borough Council,1/19/2022,0011043714/2,11043714, 112.00,Willow Pumps Ltd,00114100,,BRREP Servicing - Pumping Stn,Ton Sportsgrnd Bldgs / Toilets,M15HCP20001931,110069172
http://statistics.data.gov.uk/id/local-authority/29UP,Tonbridge & Malling Borough Council,1/19/2022,0011043714/3,11043714, 112.00,Willow Pumps Ltd,00114100,,BRREP Servicing - Pumping Stn,Vale Rise Depot,M15LCP20001931,110069172
http://statistics.data.gov.uk/id/local-authority/29UP,Tonbridge & Malling Borough Council,1/19/2022,0011043715/1,11043715, 321.33,Automated Limited,00007000,,BRREP Serv Internal Lighting,Leis Man Poult Wood Golf Centr,M15HEP20001957,110069311
http://statistics.data.gov.uk/id/local-authority/29UP,Tonbridge & Malling Borough Council,1/19/2022,0011043716/1,11043716, 1767.31,Automated Limited,00007000,,BRREP Servicing - ext lighting,Angel Centre,M15HAP20001941,110068995
http://statistics.data.gov.uk/id/local-authority/29UP,Tonbridge & Malling Borough Council,1/19/2022,0011043717/1,11043717, 329.00,BML Building Services Ltd,01505000,,BRREP General Maintenance,PC - General,M15JAP10001900,110069370
http://statistics.data.gov.uk/id/local-authority/29UP,Tonbridge & Malling Borough Council,1/19/2022,0011043718/1,11043718, 120.00,REDACTED PERSONAL DATA,00022600,,Other Expenses,Mayoral & Other Member Support,D29LX000048010,110069359
http://statistics.data.gov.uk/id/local-authority/29UP,Tonbridge & Malling Borough Council,1/19/2022,0011043719/1,11043719, 1096.00,Loxton Installations Ltd,01278800,,BRREP IEE Testing,Larkfield Leisure Centre,M15HDP30001991,110069293
http://statistics.data.gov.uk/id/local-authority/29UP,Tonbridge & Malling Borough Council,1/19/2022,0011043720/1,11043720, 200.00,Marine And Industrial Pump Services,00062800,,BRREP Servicing - sump pumps,Tonbridge Swimming Pool,M15HBP20001911,110069378
http://statistics.data.gov.uk/id/local-authority/29UP,Tonbridge & Malling Borough Council,1/19/2022,0011043721/1,11043721, 299.00,Record UK Ltd,01116900,,BRREP Servicing-entrance doors,Tonbridge Swimming Pool,M15HBP20001927,110068927
http://statistics.data.gov.uk/id/local-authority/29UP,Tonbridge & Malling Borough Council,1/19/2022,0011043722/1,11043722, 388.32,Record UK Ltd,01116900,,BRREP Servicing-entrance doors,Tonbridge Swimming Pool,M15HBP20001927,110069330
http://statistics.data.gov.uk/id/local-authority/29UP,Tonbridge & Malling Borough Council,1/19/2022,0011043723/1,11043723, 295.00,H20 Servicing Limited,00888800,808041553,BRREP Pool tile repairs,Larkfield Leisure Centre,M15HDP20001906,110069356
http://statistics.data.gov.uk/id/local-authority/29UP,Tonbridge & Malling Borough Council,1/19/2022,0011043724/1,11043724, 350.00,Mary Mary Creates Gardens Ltd,01657700,,Re-opening High Streets,Eco Dev & Reg Gen Bus Support,D52TDCV1948076,110069360
http://statistics.data.gov.uk/id/local-authority/29UP,Tonbridge & Malling Borough Council,1/19/2022,0011043725/1,11043725, 1393.00,TMS Protection Ltd,01744300,,Re-opening High Streets,Eco Dev & Reg Gen Bus Support,D52TDCV1948076,
http://statistics.data.gov.uk/id/local-authority/29UP,Tonbridge & Malling Borough Council,1/19/2022,0011043726/1,11043726, 406.00,TMS Protection Ltd,01744300,,Re-opening High Streets,Eco Dev & Reg Gen Bus Support,D52TDCV1948076,
http://statistics.data.gov.uk/id/local-authority/29UP,Tonbridge & Malling Borough Council,1/19/2022,0011043727/1,11043727, 4179.00,TMS Protection Ltd,01744300,,Re-opening High Streets,Eco Dev & Reg Gen Bus Support,D52TDCV1948076,
http://statistics.data.gov.uk/id/local-authority/29UP,Tonbridge & Malling Borough Council,1/19/2022,0011043728/1,11043728, 1134.00,Venn Group Ltd,00914300,,Temporary Staff,Legal Sals&Overheads,D01ARDR0011300,
http://statistics.data.gov.uk/id/local-authority/29UP,Tonbridge & Malling Borough Council,1/19/2022,0011043730/1,11043730, 19.75,Oasis Group  - Box-It South East,00966800,931579211,Purchases,Electoral Registration,D31MF000040101,
http://statistics.data.gov.uk/id/local-authority/29UP,Tonbridge & Malling Borough Council,1/19/2022,0011043731/3,11043731, 42.00,Furniture At Work Ltd,01809000,,Purchases,Cleaning & Security,D21FDDD6040101,
http://statistics.data.gov.uk/id/local-authority/29UP,Tonbridge & Malling Borough Council,1/19/2022,0011043732/1,11043732, 18.00,REDACTED PERSONAL DATA,00012900,,Postages - PPI / Walksort,Legal Sals&Overheads,D01AR000045017,
http://statistics.data.gov.uk/id/local-authority/29UP,Tonbridge & Malling Borough Council,1/19/2022,0011043733/1,11043733, 239.88,Scottish Water Business Stream Ltd,01641100,,Sewerage Charges,Buildings,D21FEDD6024003,
http://statistics.data.gov.uk/id/local-authority/29UP,Tonbridge & Malling Borough Council,1/19/2022,0011043735/1,11043735, 455.71,Castle Water,01696500,,Water Charges (Metered),Land Review,D40PS000024001,
http://statistics.data.gov.uk/id/local-authority/29UP,Tonbridge & Malling Borough Council,1/19/2022,0011043736/1,11043736, 200.75,Scottish Water Business Stream Ltd,01641100,,Estate Management Charge,Land Review,D40PS000020400,
http://statistics.data.gov.uk/id/local-authority/29UP,Tonbridge & Malling Borough Council,1/19/2022,0011043738/3,11043738, 1571.89,Royal Mail,00086200,,Purchases,Mailsort Stock Account,K37BR000001002,
http://statistics.data.gov.uk/id/local-authority/29UP,Tonbridge & Malling Borough Council,1/19/2022,0011043738/4,11043738, 375.12,Royal Mail,00086200,,Purchases,Mailsort Stock Account,K37BR000001002,
http://statistics.data.gov.uk/id/local-authority/29UP,Tonbridge & Malling Borough Council,1/19/2022,0011043739/3,11043739, 525.00,Driven to perfection,01541000,,Mayors Transport Allowance,Mayoral & Other Member Support,D29LX000034111,
http://statistics.data.gov.uk/id/local-authority/29UP,Tonbridge & Malling Borough Council,1/19/2022,0011043740/3,11043740, 6139.00,Wallis a Division of Kier Construction L,00806300,683800816,Contract Payments,Homeless Accommodation,P03AX000009904,
http://statistics.data.gov.uk/id/local-authority/29UP,Tonbridge & Malling Borough Council,1/19/2022,0011043741/3,11043741, 267.25,Chubb Fire & Security Ltd,00115400,174605362,BRREP Servicing-IntruderAlarm,Tonbridge Swimming Pool,M15HBP20001939,
http://statistics.data.gov.uk/id/local-authority/29UP,Tonbridge & Malling Borough Council,1/19/2022,0011043742/3,11043742, 133.06,Royal Mail,00086200,,Postages - Business Reply,Electoral Registration,D31MF000045003,
http://statistics.data.gov.uk/id/local-authority/29UP,Tonbridge & Malling Borough Council,1/19/2022,0011043742/4,11043742, 29.92,Royal Mail,00086200,,Purchases,Business Reply Stock Account,K14AT000001002,
http://statistics.data.gov.uk/id/local-authority/29UP,Tonbridge & Malling Borough Council,1/19/2022,0011043743/3,11043743, 1803.19,Royal Mail,00086200,,Purchases,Mailsort Stock Account,K37BR000001002,
http://statistics.data.gov.uk/id/local-authority/29UP,Tonbridge & Malling Borough Council,1/19/2022,0011043744/3,11043744, 127.20,Biffa Waste Services Ltd,01284500,,Trade Refuse Charges,Cleaning & Security,D21FD000044008,
http://statistics.data.gov.uk/id/local-authority/29UP,Tonbridge & Malling Borough Council,1/19/2022,0011043745/3,11043745, 18.58,Biffa Waste Services Ltd,01284500,,Trade Refuse Charges,Cleaning & Security,D21FD000044008,
http://statistics.data.gov.uk/id/local-authority/29UP,Tonbridge & Malling Borough Council,1/19/2022,0011043746/3,11043746, 18.58,Biffa Waste Services Ltd,01284500,,Trade Refuse Charges,Cleaning & Security,D21FD000044008,
http://statistics.data.gov.uk/id/local-authority/29UP,Tonbridge & Malling Borough Council,1/19/2022,0011043747/3,11043747, 120.60,Biffa Waste Services Ltd,01284500,,Trade Refuse Charges,Cleaning & Security,D21FD000044008,
http://statistics.data.gov.uk/id/local-authority/29UP,Tonbridge & Malling Borough Council,1/19/2022,0011043748/3,11043748, 56.84,Biffa Waste Services Ltd,01284500,,Trade Refuse Charges,Cleaning & Security,D21FD000044008,
http://statistics.data.gov.uk/id/local-authority/29UP,Tonbridge & Malling Borough Council,1/19/2022,0011043749/3,11043749, 201.00,Biffa Waste Services Ltd,01284500,,Trade Refuse Charges,Cleaning & Security,D21FD000044008,
http://statistics.data.gov.uk/id/local-authority/29UP,Tonbridge & Malling Borough Council,1/19/2022,0011043750/1,11043750, 99.25,Scottish Water Business Stream Ltd,01641100,,Sewerage Charges,Land Review,D40PS000024003,
http://statistics.data.gov.uk/id/local-authority/29UP,Tonbridge & Malling Borough Council,1/19/2022,0011043751/3,11043751, 70.00,Archant Community Media Ltd,00831700,,Marketing,Ton Castle Council Chamber,D21FC000044215,
http://statistics.data.gov.uk/id/local-authority/29UP,Tonbridge & Malling Borough Council,1/19/2022,0011043752/3,11043752, 97.52,Synecore Ltd,01818600,,BRREP Servicing-Air Condition,Leis Man Poult Wood Golf Centr,M15HEP20001935,
http://statistics.data.gov.uk/id/local-authority/29UP,Tonbridge & Malling Borough Council,1/19/2022,0011043753/3,11043753, 109.99,Extinguisher Doctor Ltd,00059500,,BRREP Servicing-FireExtinguish,Tonbridge Cemetery,M15HJP20001938,
http://statistics.data.gov.uk/id/local-authority/29UP,Tonbridge & Malling Borough Council,1/19/2022,0011043754/3,11043754, 5.00,Extinguisher Doctor Ltd,00059500,,BRREP Servicing-FireExtinguish,Pleasure Grounds & Open Spaces,M15HHP20001938,
http://statistics.data.gov.uk/id/local-authority/29UP,Tonbridge & Malling Borough Council,1/19/2022,0011043755/3,11043755, 100.00,Extinguisher Doctor Ltd,00059500,,BRREP Servicing-FireExtinguish,Tonbridge Castle / CAB,M15KFP20001938,
http://statistics.data.gov.uk/id/local-authority/29UP,Tonbridge & Malling Borough Council,1/19/2022,0011043755/4,11043755, 25.00,Extinguisher Doctor Ltd,00059500,,BRREP Servicing-FireExtinguish,Tonbridge Castle / CAB,M15KFP20001938,
http://statistics.data.gov.uk/id/local-authority/29UP,Tonbridge & Malling Borough Council,1/19/2022,0011043756/1,11043756, 1000.00,EW Legal Costing Ltd,01830000,,Legal Fees,Legal Sals&Overheads,D01ARDR0044002,
http://statistics.data.gov.uk/id/local-authority/29UP,Tonbridge & Malling Borough Council,1/19/2022,0012008224/10,12008224, 3.00,O2 UK Ltd,01268000,,Mobile Telephones,Chief Exec Sals&Overheads,D01ACDC0245013,
http://statistics.data.gov.uk/id/local-authority/29UP,Tonbridge & Malling Borough Council,1/19/2022,0012008224/11,12008224, 3.00,O2 UK Ltd,01268000,,Mobile Telephones,Technical Sals&Overheads,D01AEDE0045013,
http://statistics.data.gov.uk/id/local-authority/29UP,Tonbridge & Malling Borough Council,1/19/2022,0012008224/12,12008224, 6.00,O2 UK Ltd,01268000,,Mobile Telephones,Technical Sals&Overheads,D01AEDE0145013,
http://statistics.data.gov.uk/id/local-authority/29UP,Tonbridge & Malling Borough Council,1/19/2022,0012008224/13,12008224, 9.00,O2 UK Ltd,01268000,,Mobile Telephones,Technical Sals&Overheads,D01AEDE0245013,
http://statistics.data.gov.uk/id/local-authority/29UP,Tonbridge & Malling Borough Council,1/19/2022,0012008224/14,12008224, 39.44,O2 UK Ltd,01268000,,Mobile Telephones,Technical Sals&Overheads,D01AEDE0445013,
http://statistics.data.gov.uk/id/local-authority/29UP,Tonbridge & Malling Borough Council,1/19/2022,0012008224/15,12008224, 3.10,O2 UK Ltd,01268000,,Mobile Telephones,Technical Sals&Overheads,D01AEDE0545013,
http://statistics.data.gov.uk/id/local-authority/29UP,Tonbridge & Malling Borough Council,1/19/2022,0012008224/16,12008224, 12.00,O2 UK Ltd,01268000,,Mobile Telephones,Finance Sals&Overheads,D01AFDF0045013,
http://statistics.data.gov.uk/id/local-authority/29UP,Tonbridge & Malling Borough Council,1/19/2022,0012008224/17,12008224, 6.00,O2 UK Ltd,01268000,,Mobile Telephones,Finance Sals&Overheads,D01AFDF0945013,
http://statistics.data.gov.uk/id/local-authority/29UP,Tonbridge & Malling Borough Council,1/19/2022,0012008224/18,12008224, 12.00,O2 UK Ltd,01268000,,Mobile Telephones,St Scene & Leis Sals&Overheads,D01AGDG0045013,
http://statistics.data.gov.uk/id/local-authority/29UP,Tonbridge & Malling Borough Council,1/19/2022,0012008224/19,12008224, 6.00,O2 UK Ltd,01268000,,Mobile Telephones,St Scene & Leis Sals&Overheads,D01AGDG0145013,
http://statistics.data.gov.uk/id/local-authority/29UP,Tonbridge & Malling Borough Council,1/19/2022,0012008224/20,12008224, 9.00,O2 UK Ltd,01268000,,Mobile Telephones,St Scene & Leis Sals&Overheads,D01AGDG0445013,
http://statistics.data.gov.uk/id/local-authority/29UP,Tonbridge & Malling Borough Council,1/19/2022,0012008224/21,12008224, 33.20,O2 UK Ltd,01268000,,Mobile Telephones,St Scene & Leis Sals&Overheads,D01AGDG2045013,
http://statistics.data.gov.uk/id/local-authority/29UP,Tonbridge & Malling Borough Council,1/19/2022,0012008224/22,12008224, 9.00,O2 UK Ltd,01268000,,Mobile Telephones,Planning Sals&Overheads,D01AJDJ0045013,
http://statistics.data.gov.uk/id/local-authority/29UP,Tonbridge & Malling Borough Council,1/19/2022,0012008224/23,12008224, 12.20,O2 UK Ltd,01268000,,Mobile Telephones,Planning Sals&Overheads,D01AJDJ0245013,
http://statistics.data.gov.uk/id/local-authority/29UP,Tonbridge & Malling Borough Council,1/19/2022,0012008224/24,12008224, 6.00,O2 UK Ltd,01268000,,Mobile Telephones,Legal Sals&Overheads,D01ARDR0045013,
http://statistics.data.gov.uk/id/local-authority/29UP,Tonbridge & Malling Borough Council,1/19/2022,0012008224/25,12008224, 12.00,O2 UK Ltd,01268000,,Mobile Telephones,Legal Sals&Overheads,D01ARDR0445013,
http://statistics.data.gov.uk/id/local-authority/29UP,Tonbridge & Malling Borough Council,1/19/2022,0012008224/26,12008224, 3.00,O2 UK Ltd,01268000,,Mobile Telephones,Legal Sals&Overheads,D01ARDR0745013,
http://statistics.data.gov.uk/id/local-authority/29UP,Tonbridge & Malling Borough Council,1/19/2022,0012008224/27,12008224, 3.00,O2 UK Ltd,01268000,,Mobile Telephones,Env Hlth & Hsg Sals&Overheads,D01AVDV0045013,
http://statistics.data.gov.uk/id/local-authority/29UP,Tonbridge & Malling Borough Council,1/19/2022,0012008224/28,12008224, 9.00,O2 UK Ltd,01268000,,Mobile Telephones,Env Hlth & Hsg Sals&Overheads,D01AVDV0145013,
http://statistics.data.gov.uk/id/local-authority/29UP,Tonbridge & Malling Borough Council,1/19/2022,0012008224/29,12008224, 6.00,O2 UK Ltd,01268000,,Mobile Telephones,Env Hlth & Hsg Sals&Overheads,D01AVDV0345013,
http://statistics.data.gov.uk/id/local-authority/29UP,Tonbridge & Malling Borough Council,1/19/2022,0012008224/3,12008224, 3.00,O2 UK Ltd,01268000,,Telephones - General,Open Spaces & Amenity Areas,B22LE000045010,
http://statistics.data.gov.uk/id/local-authority/29UP,Tonbridge & Malling Borough Council,1/19/2022,0012008224/30,12008224, 3.00,O2 UK Ltd,01268000,,Mobile Telephones,Env Hlth & Hsg Sals&Overheads,D01AVDV0745013,
http://statistics.data.gov.uk/id/local-authority/29UP,Tonbridge & Malling Borough Council,1/19/2022,0012008224/31,12008224, 6.98,O2 UK Ltd,01268000,,Mobile Telephones,Env Hlth & Hsg Sals&Overheads,D01AVDV0945013,
http://statistics.data.gov.uk/id/local-authority/29UP,Tonbridge & Malling Borough Council,1/19/2022,0012008224/32,12008224, 9.00,O2 UK Ltd,01268000,,Mobile Telephones,Customer Services,D23CS000045013,
http://statistics.data.gov.uk/id/local-authority/29UP,Tonbridge & Malling Borough Council,1/19/2022,0012008224/33,12008224, 3.00,O2 UK Ltd,01268000,,Mobile Telephones,Tonbridge Gateway,D23TG000045013,
http://statistics.data.gov.uk/id/local-authority/29UP,Tonbridge & Malling Borough Council,1/19/2022,0012008224/34,12008224, 627.00,O2 UK Ltd,01268000,,Leased Lines & Modems,Information Technology,D27KD000045011,
http://statistics.data.gov.uk/id/local-authority/29UP,Tonbridge & Malling Borough Council,1/19/2022,0012008224/35,12008224, 3.00,O2 UK Ltd,01268000,,Mobile Telephones,Mayoral & Other Member Support,D29LX000045013,
http://statistics.data.gov.uk/id/local-authority/29UP,Tonbridge & Malling Borough Council,1/19/2022,0012008224/36,12008224, 3.00,O2 UK Ltd,01268000,,Emergency Out of Hours Recharg,Refuse Collection,H20SA000045030,
http://statistics.data.gov.uk/id/local-authority/29UP,Tonbridge & Malling Borough Council,1/19/2022,0012008224/37,12008224, 3.00,O2 UK Ltd,01268000,,Emergency Out of Hours Recharg,Street Scene,H23SD000045030,
http://statistics.data.gov.uk/id/local-authority/29UP,Tonbridge & Malling Borough Council,1/19/2022,0012008224/4,12008224, 6.00,O2 UK Ltd,01268000,,Telephones - General,Leybourne Lakes Country Park,B22LK000045010,
http://statistics.data.gov.uk/id/local-authority/29UP,Tonbridge & Malling Borough Council,1/19/2022,0012008224/5,12008224, 6.00,O2 UK Ltd,01268000,,Mobile Telephones,Admin & Prop Sals&Overheads,D01AADA0045013,
http://statistics.data.gov.uk/id/local-authority/29UP,Tonbridge & Malling Borough Council,1/19/2022,0012008224/6,12008224, 3.00,O2 UK Ltd,01268000,,Mobile Telephones,Admin & Prop Sals&Overheads,D01AADA1045013,
http://statistics.data.gov.uk/id/local-authority/29UP,Tonbridge & Malling Borough Council,1/19/2022,0012008224/7,12008224, 9.00,O2 UK Ltd,01268000,,Mobile Telephones,Admin & Prop Sals&Overheads,D01AADA1245013,
http://statistics.data.gov.uk/id/local-authority/29UP,Tonbridge & Malling Borough Council,1/19/2022,0012008224/8,12008224, 3.00,O2 UK Ltd,01268000,,Mobile Telephones,Chief Exec Sals&Overheads,D01ACDC0045013,
http://statistics.data.gov.uk/id/local-authority/29UP,Tonbridge & Malling Borough Council,1/19/2022,0012008224/9,12008224, 3.00,O2 UK Ltd,01268000,,Mobile Telephones,Chief Exec Sals&Overheads,D01ACDC0145013,
http://statistics.data.gov.uk/id/local-authority/29UP,Tonbridge & Malling Borough Council,1/19/2022,0012008225/1,12008225, 1438.80,TeamViewer Germany GmbH,01784500,245838579,Software Hire & Support,Information Technology,D27KD000044059,
http://statistics.data.gov.uk/id/local-authority/29UP,Tonbridge & Malling Borough Council,1/19/2022,0012008226/3,12008226, 15489.01,Phoenix Software Ltd,00077400,755349015,Software Hire & Support,Information Technology,D27KD000044059,
http://statistics.data.gov.uk/id/local-authority/29UP,Tonbridge & Malling Borough Council,1/19/2022,0012008227/1,12008227, 7355.41,Idox Software Ltd,00962400,,Software Hire & Support,Information Technology,D27KD000044059,410032102
http://statistics.data.gov.uk/id/local-authority/29UP,Tonbridge & Malling Borough Council,1/19/2022,0012008227/2,12008227, 1084.30,Idox Software Ltd,00962400,,Software Hire & Support,Information Technology,D27KD000044059,410032102
http://statistics.data.gov.uk/id/local-authority/29UP,Tonbridge & Malling Borough Council,1/19/2022,0012008227/3,12008227, 9141.14,Idox Software Ltd,00962400,,Software Hire & Support,Information Technology,D27KD000044059,410032102
http://statistics.data.gov.uk/id/local-authority/29UP,Tonbridge & Malling Borough Council,1/19/2022,0012008228/1,12008228, 613.91,NEC Software Solutions UK Ltd,01073900,202159745,Software Hire & Support,Information Technology,D27KD000044059,410032085
http://statistics.data.gov.uk/id/local-authority/29UP,Tonbridge & Malling Borough Council,1/19/2022,0012008228/2,12008228, 153.48,NEC Software Solutions UK Ltd,01073900,202159745,Software Hire & Support,Information Technology,D27KD000044059,410032085
http://statistics.data.gov.uk/id/local-authority/29UP,Tonbridge & Malling Borough Council,1/19/2022,0021037657/1,21037657, 90.95,Pitchcare/Agrovista UK Ltd,01737500,,Maintenance of Grounds,Leybourne Lakes Country Park,B22LK000020402,210056494
http://statistics.data.gov.uk/id/local-authority/29UP,Tonbridge & Malling Borough Council,1/19/2022,0021037677/1,21037677, 16800.00,Farol Ltd,01809200,,Initial Furniture & Equipment,Capital Renewals Leisure,P05KGBC0309906,220003134
http://statistics.data.gov.uk/id/local-authority/29UP,Tonbridge & Malling Borough Council,1/19/2022,0021037685/1,21037685, 12296.00,M & M Contractors,01266500,,Maintenance of Play Equipment,Open Spaces & Amenity Areas,B22LE000020503,210056560
http://statistics.data.gov.uk/id/local-authority/29UP,Tonbridge & Malling Borough Council,1/19/2022,0021037687/1,21037687, 530.00,Arnold Tarmac Ltd,01685100,,Maintenance of Grounds,Sports Grounds,B13ETCARP20402,210056462
http://statistics.data.gov.uk/id/local-authority/29UP,Tonbridge & Malling Borough Council,1/19/2022,0021037688/1,21037688, 530.00,Arnold Tarmac Ltd,01685100,,Maintenance of Grounds,Tonbridge Castle Grounds,B22LB000020402,210056463
http://statistics.data.gov.uk/id/local-authority/29UP,Tonbridge & Malling Borough Council,1/19/2022,0021037689/1,21037689, 530.00,Arnold Tarmac Ltd,01685100,,Maintenance of Grounds,Tonbridge Castle Grounds,B22LB000020402,210056474
http://statistics.data.gov.uk/id/local-authority/29UP,Tonbridge & Malling Borough Council,1/19/2022,0021037690/1,21037690, 530.00,Arnold Tarmac Ltd,01685100,,Maintenance of Grounds,Tonbridge Castle Grounds,B22LB000020402,210056476
http://statistics.data.gov.uk/id/local-authority/29UP,Tonbridge & Malling Borough Council,1/19/2022,0021037691/1,21037691, 530.00,Arnold Tarmac Ltd,01685100,,Maintenance of Grounds,Open Spaces & Amenity Areas,B22LE000020402,210056475
http://statistics.data.gov.uk/id/local-authority/29UP,Tonbridge & Malling Borough Council,1/19/2022,0021037692/1,21037692, 467.05,Arnold Tarmac Ltd,01685100,,Maintenance of Grounds,Sports Grounds,B13ET000020402,210056600
http://statistics.data.gov.uk/id/local-authority/29UP,Tonbridge & Malling Borough Council,1/19/2022,0021037693/1,21037693, 1950.00,Shelley Signs Ltd,01791500,,Maintenance of Grounds,Sports Grounds,B13ET000020402,210056178
http://statistics.data.gov.uk/id/local-authority/29UP,Tonbridge & Malling Borough Council,1/19/2022,0021037693/2,21037693, 1850.00,Shelley Signs Ltd,01791500,,Maintenance of Grounds,Sports Grounds,B13ET000020402,210056178
http://statistics.data.gov.uk/id/local-authority/29UP,Tonbridge & Malling Borough Council,1/19/2022,0021037693/3,21037693, 1650.00,Shelley Signs Ltd,01791500,,Maintenance of Grounds,Sports Grounds,B13ET000020402,210056178
http://statistics.data.gov.uk/id/local-authority/29UP,Tonbridge & Malling Borough Council,1/19/2022,0021037693/4,21037693, 125.00,Shelley Signs Ltd,01791500,,Maintenance of Grounds,Sports Grounds,B13ET000020402,210056178
http://statistics.data.gov.uk/id/local-authority/29UP,Tonbridge & Malling Borough Council,1/19/2022,0021037694/1,21037694, 2500.00,The Carpet & Flooring Company,01824600,,Initial Furniture & Equipment,Capital Renewals Leisure,P05KGBC0209906,210056604
http://statistics.data.gov.uk/id/local-authority/29UP,Tonbridge & Malling Borough Council,1/19/2022,0021037695/1,21037695, 31800.00,Farol Ltd,01809200,,Initial Furniture & Equipment,Capital Renewals Leisure,P05KGBC0309906,220003131
http://statistics.data.gov.uk/id/local-authority/29UP,Tonbridge & Malling Borough Council,1/19/2022,0021037696/3,21037696, 169.50,British Telecommunications Plc,00012800,,Telephones - General,Leybourne Lakes Country Park,B22LK000045010,
http://statistics.data.gov.uk/id/local-authority/29UP,Tonbridge & Malling Borough Council,1/19/2022,0022026179/3,22026179, 126.52,British Gas,01148500,,Electricity,Homelessness,C01AAMAUN21002,
http://statistics.data.gov.uk/id/local-authority/29UP,Tonbridge & Malling Borough Council,1/19/2022,0022026182/1,22026182, 13335.00,Less Homeless Ltd,01489300,,Temporary Accommodation,Homelessness,C01AA000044051,
http://statistics.data.gov.uk/id/local-authority/29UP,Tonbridge & Malling Borough Council,1/19/2022,0022026183/1,22026183, 312.50,REDACTED PERSONAL DATA,01642900,,Rent Deposit / Rent in Advance,Homelessness,C01AAC85144093,
http://statistics.data.gov.uk/id/local-authority/29UP,Tonbridge & Malling Borough Council,1/19/2022,0022026184/1,22026184, 5828.00,Kent Accommodation Ltd,01722000,,Temporary Accommodation,Homelessness,C01AA000044051,
http://statistics.data.gov.uk/id/local-authority/29UP,Tonbridge & Malling Borough Council,1/19/2022,0022026185/1,22026185, 6796.00,Premier Property Providers,01785400,,Temporary Accommodation,Homelessness,C01AA000044051,
http://statistics.data.gov.uk/id/local-authority/29UP,Tonbridge & Malling Borough Council,1/19/2022,0022026186/3,22026186, 15.14,SSE - Southern Electric,01403300,,Electricity,Homelessness,C01AA000021002,
http://statistics.data.gov.uk/id/local-authority/29UP,Tonbridge & Malling Borough Council,1/19/2022,0022026188/1,22026188, 50.85,Maidstone Borough Council,01173700,,Council Tax,Homelessness,C01AA000023002,
http://statistics.data.gov.uk/id/local-authority/29UP,Tonbridge & Malling Borough Council,1/19/2022,0022026189/1,22026189, 4.24,Maidstone Borough Council,01173700,,Council Tax,Homelessness,C01AA000023002,
http://statistics.data.gov.uk/id/local-authority/29UP,Tonbridge & Malling Borough Council,1/19/2022,0022026190/1,22026190, 2.40,REDACTED PERSONAL DATA,01111000,,Food Sampling,Food & Safety - Food Safety,H35SX000054011,
http://statistics.data.gov.uk/id/local-authority/29UP,Tonbridge & Malling Borough Council,1/19/2022,0022026190/2,22026190, 2.20,REDACTED PERSONAL DATA,01111000,,Food Sampling,Food & Safety - Food Safety,H35SX000054011,
http://statistics.data.gov.uk/id/local-authority/29UP,Tonbridge & Malling Borough Council,1/19/2022,0022026190/3,22026190, 2.00,REDACTED PERSONAL DATA,01111000,,Food Sampling,Food & Safety - Food Safety,H35SX000054011,
http://statistics.data.gov.uk/id/local-authority/29UP,Tonbridge & Malling Borough Council,1/19/2022,0022026191/1,22026191, 32.18,Biffa Waste Services Ltd,01284500,,Trade Refuse Charges,Cleaning & Security,D21FD000044008,
http://statistics.data.gov.uk/id/local-authority/29UP,Tonbridge & Malling Borough Council,1/19/2022,0022026192/1,22026192, 990.00,G2 Recruitment Solutions,01786000,,Temporary Staff,Env Hlth & Hsg Sals&Overheads,D01AVDV0711300,
http://statistics.data.gov.uk/id/local-authority/29UP,Tonbridge & Malling Borough Council,1/19/2022,0022026193/3,22026193, 739.17,G2 Recruitment Solutions,01786000,,Temporary Staff,Env Hlth & Hsg Sals&Overheads,D01AVDV0711300,
http://statistics.data.gov.uk/id/local-authority/29UP,Tonbridge & Malling Borough Council,1/19/2022,0022026194/3,22026194, 759.00,G2 Recruitment Solutions,01786000,,Temporary Staff,Env Hlth & Hsg Sals&Overheads,D01AVDV0711300,
http://statistics.data.gov.uk/id/local-authority/29UP,Tonbridge & Malling Borough Council,1/19/2022,0022026195/3,22026195, 558.66,G2 Recruitment Solutions,01786000,,Temporary Staff,Env Hlth & Hsg Sals&Overheads,D01AVDV0711300,
http://statistics.data.gov.uk/id/local-authority/29UP,Tonbridge & Malling Borough Council,1/19/2022,0022026196/3,22026196, 1056.00,G2 Recruitment Solutions,01786000,,Temporary Staff,Env Hlth & Hsg Sals&Overheads,D01AVDV0711300,
http://statistics.data.gov.uk/id/local-authority/29UP,Tonbridge & Malling Borough Council,1/19/2022,0022026197/3,22026197, 732.37,G2 Recruitment Solutions,01786000,,Temporary Staff,Env Hlth & Hsg Sals&Overheads,D01AVDV0711300,
http://statistics.data.gov.uk/id/local-authority/29UP,Tonbridge & Malling Borough Council,1/19/2022,0022026199/1,22026199, 70.00,LA Personal Fitness,01782300,,Healthy Living Initiatives,Public Health - Healthy Living,H40SYVH0048145,220003171
http://statistics.data.gov.uk/id/local-authority/29UP,Tonbridge & Malling Borough Council,1/19/2022,0022026200/3,22026200, 325.00,Monitor Pest Control Ltd,01476700,,Other Expenses,Pest Control,H24SE000048010,
http://statistics.data.gov.uk/id/local-authority/29UP,Tonbridge & Malling Borough Council,1/19/2022,0022026201/1,22026201, 23520.00,Straight Plc,01029400,,Purchases,Food Recycling,H34SS000040101,210056514
http://statistics.data.gov.uk/id/local-authority/29UP,Tonbridge & Malling Borough Council,1/19/2022,0022026202/3,22026202, 1239.50,Vivid Resourcing,01773700,,Temporary Staff,Env Hlth & Hsg Sals&Overheads,D01AVDV0711300,
http://statistics.data.gov.uk/id/local-authority/29UP,Tonbridge & Malling Borough Council,1/19/2022,0022026203/1,22026203, 5400.00,CJB Services,01823200,,Other Expenses,Disabled Facilities Grant Mand,P03AC000009908,
http://statistics.data.gov.uk/id/local-authority/29UP,Tonbridge & Malling Borough Council,1/19/2022,0022026204/1,22026204, 46.00,Streamline (Kent) Limited,01043100,,Public Transport,Homelessness,C01AA000033001,
http://statistics.data.gov.uk/id/local-authority/29UP,Tonbridge & Malling Borough Council,1/19/2022,0022026205/1,22026205, 224.20,Countrystyle Group,00835900,781981681,Plastic Recycling,Dry Recycling,H34SR000054019,
http://statistics.data.gov.uk/id/local-authority/29UP,Tonbridge & Malling Borough Council,1/19/2022,0022026206/1,22026206, 10775.50,Urbaser LTD,01718800,,Contract Payments,Refuse Collection,H20SA000054001,
http://statistics.data.gov.uk/id/local-authority/29UP,Tonbridge & Malling Borough Council,1/19/2022,0022026207/3,22026207, 936.00,The Oyster Partnership,01196400,,Temporary Staff,Env Hlth & Hsg Sals&Overheads,D01AVDV0711300,
http://statistics.data.gov.uk/id/local-authority/29UP,Tonbridge & Malling Borough Council,1/19/2022,0031018406/3,31018406, 120.90,Imperial Civil Enforcement Solutions,00057200,,Adjudication & Enforcement Ser,Parking Off-Street,E10HA000044230,
http://statistics.data.gov.uk/id/local-authority/29UP,Tonbridge & Malling Borough Council,1/19/2022,0031018407/1,31018407, 1736.00,Nagels,01434000,,Stationery,Parking Off-Street,E10HA000043003,310042762
http://statistics.data.gov.uk/id/local-authority/29UP,Tonbridge & Malling Borough Council,1/19/2022,0031018410/1,31018410, 156.00,Flowbird Smart City UK Limited,00898700,,Maintenance - General,Parking Off-Street,E10HAE01340135,310042771
http://statistics.data.gov.uk/id/local-authority/29UP,Tonbridge & Malling Borough Council,1/19/2022,0031018410/2,31018410, 32.40,Flowbird Smart City UK Limited,00898700,,Maintenance - General,Parking Off-Street,E10HAE01340135,310042771
http://statistics.data.gov.uk/id/local-authority/29UP,Tonbridge & Malling Borough Council,1/19/2022,0031018413/1,31018413, 3124.10,PSR Lighting & Signs Ltd,01265400,,Tonbridge Christmas Lighting,Eco Dev & Reg Ton Chris Light,D52TF000047015,210056522
http://statistics.data.gov.uk/id/local-authority/29UP,Tonbridge & Malling Borough Council,1/19/2022,0032009364/3,32009364, 45.00,Sevenoaks District Council,00089300,,Building Control Partnership,Building Control,A01AD000054023,
http://statistics.data.gov.uk/id/local-authority/29UP,Tonbridge & Malling Borough Council,1/19/2022,0032009365/1,32009365, 64.95,KCS,00054200,,Stationery,Planning Sals&Overheads,D01AJDJ0143003,320003375
http://statistics.data.gov.uk/id/local-authority/29UP,Tonbridge & Malling Borough Council,1/19/2022,0032009367/1,32009367, 135.00,Charles & Associates,01739200,,Application & Appeals,Development Management,A01AB000044194,
http://statistics.data.gov.uk/id/local-authority/29UP,Tonbridge & Malling Borough Council,1/19/2022,0032009368/1,32009368, 1110.00,Charles & Associates,01739200,,Application & Appeals,Development Management,A01AB000044194,320003335
http://statistics.data.gov.uk/id/local-authority/29UP,Tonbridge & Malling Borough Council,1/19/2022,0032009369/1,32009369, 1000.00,DHA Planning Ltd,01553900,,Professional Fees,Planning Policy,A01AF000044001,320003289
http://statistics.data.gov.uk/id/local-authority/29UP,Tonbridge & Malling Borough Council,1/19/2022,0032009370/1,32009370, 364.14,KM Media Group Ltd,00053900,,Advertising General,Development Management,A01ABZ99944216,320003371
http://statistics.data.gov.uk/id/local-authority/29UP,Tonbridge & Malling Borough Council,1/19/2022,0032009371/1,32009371, 128.52,KM Media Group Ltd,00053900,,Advertising General,Development Management,A01ABZ99944216,320003376
http://statistics.data.gov.uk/id/local-authority/29UP,Tonbridge & Malling Borough Council,1/19/2022,0041033862/1,41033862, 4000.00,Focus On Banking,01655700,,Contract Services,Banking Arrangements,D43QK000044005,410032070
http://statistics.data.gov.uk/id/local-authority/29UP,Tonbridge & Malling Borough Council,1/19/2022,0041033863/1,41033863, 912.50,Morgan Hunt UK Ltd,01086900,,Temporary Staff,Finance Sals&Overheads,D01AFDF1111300,
http://statistics.data.gov.uk/id/local-authority/29UP,Tonbridge & Malling Borough Council,1/19/2022,0041033864/1,41033864, 1046.75,Morgan Hunt UK Ltd,01086900,,Temporary Staff,Finance Sals&Overheads,D01AFDF1111300,
http://statistics.data.gov.uk/id/local-authority/29UP,Tonbridge & Malling Borough Council,1/19/2022,0041033865/1,41033865, 1261.53,Maidstone Borough Council,01173700,,Bailiffs Commission,Local Revenue & NNDR Collect,D41QA000044075,
http://statistics.data.gov.uk/id/local-authority/29UP,Tonbridge & Malling Borough Council,1/19/2022,0041033866/1,41033866, 1250.22,Rundle & Co Ltd,00087200,,Bailiffs Commission,Local Revenue & NNDR Collect,D41QA000044075,
http://statistics.data.gov.uk/id/local-authority/29UP,Tonbridge & Malling Borough Council,1/19/2022,0041033868/1,41033868, 2.95,KCS,00054200,,Purchases,Finance Sals&Overheads,D01AFDF0440101,410032112
http://statistics.data.gov.uk/id/local-authority/29UP,Tonbridge & Malling Borough Council,1/19/2022,0041033868/2,41033868, 3.95,KCS,00054200,,Stationery,Finance Sals&Overheads,D01AFDF0443003,410032112
http://statistics.data.gov.uk/id/local-authority/29UP,Tonbridge & Malling Borough Council,1/19/2022,0041033871/1,41033871, 2000.00,St Peter & St Pauls Church Aylesford,01786400,,Charitable / Voluntary Organis,Grants & Payments to Vol Orgn,D37PACV1947005,
http://statistics.data.gov.uk/id/local-authority/29UP,Tonbridge & Malling Borough Council,1/19/2022,0041033872/1,41033872, 2000.00,The East Malling Centre,01168000,,Charitable / Voluntary Organis,Grants & Payments to Vol Orgn,D37PACV1947005,
http://statistics.data.gov.uk/id/local-authority/29UP,Tonbridge & Malling Borough Council,1/19/2022,0041033873/1,41033873, 2000.00,FeastFamiliesEating and Sharing Together,01786600,,Charitable / Voluntary Organis,Grants & Payments to Vol Orgn,D37PACV1947005,
http://statistics.data.gov.uk/id/local-authority/29UP,Tonbridge & Malling Borough Council,1/19/2022,0041033874/1,41033874, 15000.00,Citizens Advice North and West Kent ,01617600,,Charitable / Voluntary Organis,Grants & Payments to Vol Orgn,D37PACV1947005,
http://statistics.data.gov.uk/id/local-authority/29UP,Tonbridge & Malling Borough Council,1/19/2022,0041033875/1,41033875, 2000.00,Snodland Food Assist,01830700,,Charitable / Voluntary Organis,Grants & Payments to Vol Orgn,D37PACV1947005,
http://statistics.data.gov.uk/id/local-authority/29UP,Tonbridge & Malling Borough Council,1/19/2022,0041033876/1,41033876, 15000.00,Tonbridge Baptist Church,00401200,,Charitable / Voluntary Organis,Grants & Payments to Vol Orgn,D37PACV1947005,
http://statistics.data.gov.uk/id/local-authority/29UP,Tonbridge & Malling Borough Council,1/19/2022,0041033877/1,41033877, 6500.00,Rapport Housing & Care,01823900,,Charitable / Voluntary Organis,Grants & Payments to Vol Orgn,D37PACV1947005,
http://statistics.data.gov.uk/id/local-authority/29UP,Tonbridge & Malling Borough Council,1/19/2022,0041033879/1,41033879, 800.00,Sternway Properties t/a Seekers,01110600,,Homelessness Reduction Initiat,Homelessness,C01AA000048019,
http://statistics.data.gov.uk/id/local-authority/29UP,Tonbridge & Malling Borough Council,1/19/2022,0051008635/1,51008635, 700.00,Counterweight LTD,01506600,,Ext Fees/Prof & Tech,Training,D10DCDV0113561,510010534
http://statistics.data.gov.uk/id/local-authority/29UP,Tonbridge & Malling Borough Council,1/19/2022,0051008636/1,51008636, 1000.00,Jadu Creative,01770500,,Ext Fees/IT Training,Training,D10DCDN0113564,510010536
http://statistics.data.gov.uk/id/local-authority/29UP,Tonbridge & Malling Borough Council,1/20/2022,0041033885/1,41033885, 139.23,WorldPay ,01568000,,Credit Card Commission,Banking Arrangements,D43QK000044082,
http://statistics.data.gov.uk/id/local-authority/29UP,Tonbridge & Malling Borough Council,1/20/2022,0041033886/1,41033886, 96.07,Utax UK Ltd,01658500,642302771,Copy Charges,Multi Function Devices,D22GB000040125,
http://statistics.data.gov.uk/id/local-authority/29UP,Tonbridge & Malling Borough Council,1/20/2022,0041033887/1,41033887, 677.78,WorldPay ,01568000,,Credit Card Commission,Banking Arrangements,D43QK000044082,
http://statistics.data.gov.uk/id/local-authority/29UP,Tonbridge & Malling Borough Council,1/20/2022,0041033888/1,41033888, 15.00,WorldPay ,01568000,,Credit Card Commission,Banking Arrangements,D43QK000044082,
http://statistics.data.gov.uk/id/local-authority/29UP,Tonbridge & Malling Borough Council,1/21/2022,0041033893/1,41033893, 2343.00,H.M. Revenue & Customs,00048400,,Levy Payment,Apprenticeship Scheme,D10DE000013700,
http://statistics.data.gov.uk/id/local-authority/29UP,Tonbridge & Malling Borough Council,1/21/2022,0041033894/1,41033894, 474.73,Castle Water,01696500,,Estate Management Charge,Land Review,D40PS000020400,
http://statistics.data.gov.uk/id/local-authority/29UP,Tonbridge & Malling Borough Council,1/21/2022,0041033895/1,41033895, 140.05,Castle Water,01696500,,Estate Management Charge,Land Review,D40PS000020400,
http://statistics.data.gov.uk/id/local-authority/29UP,Tonbridge & Malling Borough Council,1/21/2022,0041033896/1,41033896, 4089.62,Clarion Housing,01078200,,Homelessness Reduction Initiat,Homelessness,C01AA000048019,
http://statistics.data.gov.uk/id/local-authority/29UP,Tonbridge & Malling Borough Council,1/24/2022,0041033900/1,41033900, 68.00,National Westminster Bank Plc,00069400,,Direct Debit / Bank Charges,Local Revenue & NNDR Collect,D41QA000044079,
http://statistics.data.gov.uk/id/local-authority/29UP,Tonbridge & Malling Borough Council,1/24/2022,0041033901/1,41033901, 200.79,National Westminster Bank Plc,00069400,,Direct Debit / Bank Charges,Local Revenue & NNDR Collect,D41QA000044079,
http://statistics.data.gov.uk/id/local-authority/29UP,Tonbridge & Malling Borough Council,1/26/2022,0011043757/1,11043757, 170.00,PV Environmental Surveys,00987200,,BRREP Asbestos monitoring,Angel Centre,M15HAP30001993,110069325
http://statistics.data.gov.uk/id/local-authority/29UP,Tonbridge & Malling Borough Council,1/26/2022,0011043757/2,11043757, 170.00,PV Environmental Surveys,00987200,,BRREP Asbestos monitoring,Larkfield Leisure Centre,M15HDP30001993,110069325
http://statistics.data.gov.uk/id/local-authority/29UP,Tonbridge & Malling Borough Council,1/26/2022,0011043757/3,11043757, 170.00,PV Environmental Surveys,00987200,,BRREP Asbestos monitoring,Leis Man Poult Wood Golf Centr,M15HEP30001993,110069325
http://statistics.data.gov.uk/id/local-authority/29UP,Tonbridge & Malling Borough Council,1/26/2022,0011043757/4,11043757, 170.00,PV Environmental Surveys,00987200,,BRREP Asbestos monitoring,Tonbridge Farm Pavillion,M15HGP30001993,110069325
http://statistics.data.gov.uk/id/local-authority/29UP,Tonbridge & Malling Borough Council,1/26/2022,0011043757/5,11043757, 170.00,PV Environmental Surveys,00987200,,BRREP Asbestos monitoring,PC - General,M15JAP30001993,110069325
http://statistics.data.gov.uk/id/local-authority/29UP,Tonbridge & Malling Borough Council,1/26/2022,0011043757/6,11043757, 170.00,PV Environmental Surveys,00987200,,BRREP Asbestos monitoring,Gibson Building West,M15KBP30001993,110069325
http://statistics.data.gov.uk/id/local-authority/29UP,Tonbridge & Malling Borough Council,1/26/2022,0011043757/7,11043757, 170.00,PV Environmental Surveys,00987200,,BRREP Asbestos monitoring,Tonbridge Castle / CAB,M15KFP30001993,110069325
http://statistics.data.gov.uk/id/local-authority/29UP,Tonbridge & Malling Borough Council,1/26/2022,0011043757/8,11043757, 170.00,PV Environmental Surveys,00987200,,BRREP Asbestos monitoring,Shops & Maisonettes,M15NAP30001993,110069325
http://statistics.data.gov.uk/id/local-authority/29UP,Tonbridge & Malling Borough Council,1/26/2022,0011043758/1,11043758, 2000.00,RICS,01820000,,BRREP Licence Fees - app list,Kings Hill Offices - Ext Areas,M15KAP20001977,110069270
http://statistics.data.gov.uk/id/local-authority/29UP,Tonbridge & Malling Borough Council,1/26/2022,0011043759/1,11043759, 16000.00,Hartnell Taylor Cook,01539500,,Professional Fees,Land Review,D40PSTON144001,110069213
http://statistics.data.gov.uk/id/local-authority/29UP,Tonbridge & Malling Borough Council,1/26/2022,0011043760/1,11043760, 970.00,G C Industrial Heating Services,00578100,,BRREP Plant renewals,Tonbridge Swimming Pool,M15HBP20001909,110069367
http://statistics.data.gov.uk/id/local-authority/29UP,Tonbridge & Malling Borough Council,1/26/2022,0011043761/1,11043761, 850.00,G C Industrial Heating Services,00578100,,BRREP Servicing - boilers,Gibson Building East,M15KGP20001929,110069338
http://statistics.data.gov.uk/id/local-authority/29UP,Tonbridge & Malling Borough Council,1/26/2022,0011043762/1,11043762, 2220.00,G C Industrial Heating Services,00578100,,BRREP Servicing - boilers,Tonbridge Swimming Pool,M15HBP20001929,110069365
http://statistics.data.gov.uk/id/local-authority/29UP,Tonbridge & Malling Borough Council,1/26/2022,0011043763/1,11043763, 13.60,KCS,00054200,,Purchases,Tonbridge Castle Gatehouse,B40TG000040101,110069276
http://statistics.data.gov.uk/id/local-authority/29UP,Tonbridge & Malling Borough Council,1/26/2022,0011043763/2,11043763, 50.45,KCS,00054200,,Purchases,Tonbridge Castle Gatehouse,B40TG000040101,110069276
http://statistics.data.gov.uk/id/local-authority/29UP,Tonbridge & Malling Borough Council,1/26/2022,0011043763/3,11043763, 11.50,KCS,00054200,,Purchases,Tonbridge Castle Gatehouse,B40TG000040101,110069276
http://statistics.data.gov.uk/id/local-authority/29UP,Tonbridge & Malling Borough Council,1/26/2022,0011043763/4,11043763, 9.85,KCS,00054200,,Purchases,Customer Services,D23CS000040101,110069276
http://statistics.data.gov.uk/id/local-authority/29UP,Tonbridge & Malling Borough Council,1/26/2022,0011043764/1,11043764, 7.60,KCS,00054200,,Cleaning & Domestic Supplies,Cleaning & Security,D21FD000026001,110069053
http://statistics.data.gov.uk/id/local-authority/29UP,Tonbridge & Malling Borough Council,1/26/2022,0011043764/2,11043764, 3.80,KCS,00054200,,Cleaning & Domestic Supplies,Cleaning & Security,D21FD000026001,110069053
http://statistics.data.gov.uk/id/local-authority/29UP,Tonbridge & Malling Borough Council,1/26/2022,0011043765/1,11043765, 1.10,KCS,00054200,,Cleaning & Domestic Supplies,Cleaning & Security,D21FD000026001,110069053
http://statistics.data.gov.uk/id/local-authority/29UP,Tonbridge & Malling Borough Council,1/26/2022,0011043765/2,11043765, 4.00,KCS,00054200,,Cleaning & Domestic Supplies,Cleaning & Security,D21FD000026001,110069053
http://statistics.data.gov.uk/id/local-authority/29UP,Tonbridge & Malling Borough Council,1/26/2022,0011043765/3,11043765, 4.40,KCS,00054200,,Cleaning & Domestic Supplies,Cleaning & Security,D21FD000026001,110069053
http://statistics.data.gov.uk/id/local-authority/29UP,Tonbridge & Malling Borough Council,1/26/2022,0011043765/4,11043765, 9.00,KCS,00054200,,Cleaning & Domestic Supplies,Cleaning & Security,D21FD000026001,110069053
http://statistics.data.gov.uk/id/local-authority/29UP,Tonbridge & Malling Borough Council,1/26/2022,0011043765/5,11043765, 11.95,KCS,00054200,,Cleaning & Domestic Supplies,Cleaning & Security,D21FD000026001,110069053
http://statistics.data.gov.uk/id/local-authority/29UP,Tonbridge & Malling Borough Council,1/26/2022,0011043766/1,11043766, 63.00,KCS,00054200,,Cleaning & Domestic Supplies,Cleaning & Security,D21FD000026001,110069040
http://statistics.data.gov.uk/id/local-authority/29UP,Tonbridge & Malling Borough Council,1/26/2022,0011043766/2,11043766, 52.80,KCS,00054200,,Cleaning & Domestic Supplies,Cleaning & Security,D21FD000026001,110069040
http://statistics.data.gov.uk/id/local-authority/29UP,Tonbridge & Malling Borough Council,1/26/2022,0011043766/3,11043766, 22.40,KCS,00054200,,Cleaning & Domestic Supplies,Cleaning & Security,D21FD000026001,110069040
http://statistics.data.gov.uk/id/local-authority/29UP,Tonbridge & Malling Borough Council,1/26/2022,0011043766/4,11043766, 41.50,KCS,00054200,,Cleaning & Domestic Supplies,Cleaning & Security,D21FD000026001,110069040
http://statistics.data.gov.uk/id/local-authority/29UP,Tonbridge & Malling Borough Council,1/26/2022,0011043766/5,11043766, 238.00,KCS,00054200,,Cleaning & Domestic Supplies,Cleaning & Security,D21FD000026001,110069040
http://statistics.data.gov.uk/id/local-authority/29UP,Tonbridge & Malling Borough Council,1/26/2022,0011043767/1,11043767, 1490.00,Coolburn Air Conditioning Ltd,01137900,,BRREP Servicing - air handling,Angel Centre,M15HAP20001936,110069326
http://statistics.data.gov.uk/id/local-authority/29UP,Tonbridge & Malling Borough Council,1/26/2022,0011043768/1,11043768, 100.00,Triple S Lift Services,01344900,,BRREP Servicing - lifts,Gibson Building East,M15KGP20001930,110069369
http://statistics.data.gov.uk/id/local-authority/29UP,Tonbridge & Malling Borough Council,1/26/2022,0011043769/1,11043769, 79.50,KCS,00054200,,Stationery,Admin & Prop Sals&Overheads,D01AA000043003,110069380
http://statistics.data.gov.uk/id/local-authority/29UP,Tonbridge & Malling Borough Council,1/26/2022,0011043769/2,11043769, 15.90,KCS,00054200,,Stationery,Admin & Prop Sals&Overheads,D01AA000043003,110069380
http://statistics.data.gov.uk/id/local-authority/29UP,Tonbridge & Malling Borough Council,1/26/2022,0011043769/3,11043769, 5.90,KCS,00054200,,Stationery,Admin & Prop Sals&Overheads,D01AA000043003,110069380
http://statistics.data.gov.uk/id/local-authority/29UP,Tonbridge & Malling Borough Council,1/26/2022,0011043770/1,11043770, 990.00,Comfort Controls  (Service) Limited,01226700,,BRREP BMS System Mntce/Upgrade,Tonbridge Swimming Pool,M15HBP20001912,110069340
http://statistics.data.gov.uk/id/local-authority/29UP,Tonbridge & Malling Borough Council,1/26/2022,0011043771/1,11043771, 920.00,Loxton Installations Ltd,01278800,,BRREP IEE Testing,Tonbridge Farm Pavillion,M15HGP30001991,110069314
http://statistics.data.gov.uk/id/local-authority/29UP,Tonbridge & Malling Borough Council,1/26/2022,0011043772/1,11043772, 996.50,H20 Servicing Limited,00888800,808041553,BRREP Servicing - pool plant,Tonbridge Swimming Pool,M15HBP20001910,110069094
http://statistics.data.gov.uk/id/local-authority/29UP,Tonbridge & Malling Borough Council,1/26/2022,0011043773/1,11043773, 500.00,G C Industrial Heating Services,00578100,,BRREP Legionella Certification,Tonbridge Swimming Pool,M15HBP30001995,110069363
http://statistics.data.gov.uk/id/local-authority/29UP,Tonbridge & Malling Borough Council,1/26/2022,0011043773/2,11043773, 2330.00,G C Industrial Heating Services,00578100,,BRREP Response - General,Tonbridge Swimming Pool,M15HBP50001997,110069363
http://statistics.data.gov.uk/id/local-authority/29UP,Tonbridge & Malling Borough Council,1/26/2022,0011043774/1,11043774, 225.00,Lemon Drainage Services LTD,01761600,,BRREP Servicing - Pumping Stn,Pleasure Grounds & Open Spaces,M15HHP20001931,110068979
http://statistics.data.gov.uk/id/local-authority/29UP,Tonbridge & Malling Borough Council,1/26/2022,0011043775/1,11043775, 525.00,PV Environmental Surveys,00987200,,BRREP General Maintenance,PC - General,M15JAP10001900,110068940
http://statistics.data.gov.uk/id/local-authority/29UP,Tonbridge & Malling Borough Council,1/26/2022,0011043776/1,11043776, 15.80,KCS,00054200,,Stationery,Admin & Prop Sals&Overheads,D01AA000043003,110069390
http://statistics.data.gov.uk/id/local-authority/29UP,Tonbridge & Malling Borough Council,1/26/2022,0011043776/2,11043776, 15.80,KCS,00054200,,Stationery,Admin & Prop Sals&Overheads,D01AA000043003,110069390
http://statistics.data.gov.uk/id/local-authority/29UP,Tonbridge & Malling Borough Council,1/26/2022,0011043777/1,11043777, 1134.00,Venn Group Ltd,00914300,,Temporary Staff,Legal Sals&Overheads,D01ARDR0011300,
http://statistics.data.gov.uk/id/local-authority/29UP,Tonbridge & Malling Borough Council,1/26/2022,0011043778/1,11043778, 546.00,Venn Group Ltd,00914300,,Temporary Staff,Legal Sals&Overheads,D01ARDR0011300,
http://statistics.data.gov.uk/id/local-authority/29UP,Tonbridge & Malling Borough Council,1/26/2022,0011043779/1,11043779, 474.00,BML Building Services Ltd,01505000,,BRREP General Maintenance,PC - General,M15JAP10001900,
http://statistics.data.gov.uk/id/local-authority/29UP,Tonbridge & Malling Borough Council,1/26/2022,0011043780/1,11043780, 250.00,BML Building Services Ltd,01505000,,BRREP Pre-Decoration repairs,Pleasure Grounds & Open Spaces,M15HHP20001920,
http://statistics.data.gov.uk/id/local-authority/29UP,Tonbridge & Malling Borough Council,1/26/2022,0011043781/1,11043781, 668.25,Prosec General Security Ltd,00810600,,Office Security,Ton Castle Council Chamber,D21FC000044047,
http://statistics.data.gov.uk/id/local-authority/29UP,Tonbridge & Malling Borough Council,1/26/2022,0011043781/2,11043781, 465.75,Prosec General Security Ltd,00810600,,Office Security,Cleaning & Security,D21FD000044047,
http://statistics.data.gov.uk/id/local-authority/29UP,Tonbridge & Malling Borough Council,1/26/2022,0011043781/3,11043781, 2571.75,Prosec General Security Ltd,00810600,,Office Security,Tonbridge Gateway,D23TG000044047,
http://statistics.data.gov.uk/id/local-authority/29UP,Tonbridge & Malling Borough Council,1/26/2022,0011043782/1,11043782, 2876.28,Retroelectric Ltd,01831000,,H&CG Fund Council Specific,Eco Dev & Reg Gen Bus Support,D52TD000047027,
http://statistics.data.gov.uk/id/local-authority/29UP,Tonbridge & Malling Borough Council,1/26/2022,0011043783/3,11043783, 250.00,G C Industrial Heating Services,00578100,,BRREP Response - General,Tonbridge Cemetery,M15HJP50001997,
http://statistics.data.gov.uk/id/local-authority/29UP,Tonbridge & Malling Borough Council,1/26/2022,0011043784/3,11043784, 465.00,Automated Limited,00007000,,BRREP Serv Internal Lighting,Angel Centre,M15HAP20001957,
http://statistics.data.gov.uk/id/local-authority/29UP,Tonbridge & Malling Borough Council,1/26/2022,0011043785/3,11043785, 585.00,Automated Limited,00007000,,BRREP Serv Internal Lighting,Leis Man Poult Wood Golf Centr,M15HEP20001957,
http://statistics.data.gov.uk/id/local-authority/29UP,Tonbridge & Malling Borough Council,1/26/2022,0011043786/3,11043786, 487.72,Automated Limited,00007000,,BRREP Serv Internal Lighting,Leis Man Poult Wood Golf Centr,M15HEP20001957,
http://statistics.data.gov.uk/id/local-authority/29UP,Tonbridge & Malling Borough Council,1/26/2022,0011043787/3,11043787, 255.00,Automated Limited,00007000,,BRREP Serv Internal Lighting,Angel Centre,M15HAP20001957,
http://statistics.data.gov.uk/id/local-authority/29UP,Tonbridge & Malling Borough Council,1/26/2022,0011043788/3,11043788, 210.00,Automated Limited,00007000,,BRREP Servicing - Heating Syst,Tonbridge Farm Pavillion,M15HGP20001934,
http://statistics.data.gov.uk/id/local-authority/29UP,Tonbridge & Malling Borough Council,1/26/2022,0011043789/3,11043789, 85.00,Automated Limited,00007000,,BRREP Serv Internal Lighting,Tonbridge Swimming Pool,M15HBP20001957,
http://statistics.data.gov.uk/id/local-authority/29UP,Tonbridge & Malling Borough Council,1/26/2022,0011043790/3,11043790, 135.00,Automated Limited,00007000,,BRREP Response - General,Tonbridge Swimming Pool,M15HBP50001997,
http://statistics.data.gov.uk/id/local-authority/29UP,Tonbridge & Malling Borough Council,1/26/2022,0011043791/3,11043791, 280.00,Automated Limited,00007000,,BRREP Servicing-IntruderAlarm,Angel Centre,M15HAP20001939,
http://statistics.data.gov.uk/id/local-authority/29UP,Tonbridge & Malling Borough Council,1/26/2022,0011043792/3,11043792, 2057.25,TwoFold Limited,00518000,,Maintenance - General,Printing,D22GA000040135,
http://statistics.data.gov.uk/id/local-authority/29UP,Tonbridge & Malling Borough Council,1/26/2022,0011043793/3,11043793, 110.00,Security & Electronic Solutions Ltd,01379500,,BRREP Servicing - CCTV,Tonbridge Swimming Pool,M15HBP20001952,
http://statistics.data.gov.uk/id/local-authority/29UP,Tonbridge & Malling Borough Council,1/26/2022,0011043794/3,11043794, 105.00,Triple S Lift Services,01344900,,BRREP Servicing - lifts,Angel Centre,M15HAP20001930,
http://statistics.data.gov.uk/id/local-authority/29UP,Tonbridge & Malling Borough Council,1/26/2022,0011043795/3,11043795, 3422.62,KCS,00054200,,Gas,Buildings,D21FEDD1021003,
http://statistics.data.gov.uk/id/local-authority/29UP,Tonbridge & Malling Borough Council,1/26/2022,0011043796/3,11043796, 1341.90,KCS,00054200,,Gas,Buildings,D21FEDD6021003,
http://statistics.data.gov.uk/id/local-authority/29UP,Tonbridge & Malling Borough Council,1/26/2022,0011043797/3,11043797, 4541.01,KCS,00054200,,Electricity,Buildings,D21FEDD1021002,
http://statistics.data.gov.uk/id/local-authority/29UP,Tonbridge & Malling Borough Council,1/26/2022,0011043798/3,11043798, 4138.40,KCS,00054200,,Electricity,Buildings,D21FEDD5021002,
http://statistics.data.gov.uk/id/local-authority/29UP,Tonbridge & Malling Borough Council,1/26/2022,0011043799/3,11043799, 2113.83,KCS,00054200,,Electricity,Buildings,D21FEDD6021002,
http://statistics.data.gov.uk/id/local-authority/29UP,Tonbridge & Malling Borough Council,1/26/2022,0011043800/3,11043800, 344.83,Initial Washroom Hygiene,00048300,,Laundry - Roller Towels,Cleaning & Security,D21FD000042003,
http://statistics.data.gov.uk/id/local-authority/29UP,Tonbridge & Malling Borough Council,1/26/2022,0011043801/3,11043801, 163.21,Chubb Fire & Security Ltd,00115400,174605362,BRREP Servicing-IntruderAlarm,Tonbridge Swimming Pool,M15HBP20001939,
http://statistics.data.gov.uk/id/local-authority/29UP,Tonbridge & Malling Borough Council,1/26/2022,0011043802/1,11043802, 30.00,Mayor's Charity Appeal,00809300,,Hospitality,Mayoral & Other Member Support,D29LX000048003,
http://statistics.data.gov.uk/id/local-authority/29UP,Tonbridge & Malling Borough Council,1/26/2022,0011043803/3,11043803, 209.05,Premier Paper Group,01421800,,Purchases - Paper,Printing,D22GA000040102,
http://statistics.data.gov.uk/id/local-authority/29UP,Tonbridge & Malling Borough Council,1/26/2022,0011043804/3,11043804, 214.10,Premier Paper Group,01421800,,Purchases - Paper,Printing,D22GA000040102,
http://statistics.data.gov.uk/id/local-authority/29UP,Tonbridge & Malling Borough Council,1/26/2022,0011043805/3,11043805, 49.54,B&Q/Screwfix Direct(TradeUKAccount),00141300,,Cleaning & Domestic Supplies,Cleaning & Security,D21FD000026001,
http://statistics.data.gov.uk/id/local-authority/29UP,Tonbridge & Malling Borough Council,1/26/2022,0011043806/1,11043806, 251.86,Scottish Water Business Stream Ltd,01641100,,Estate Management Charge,Land Review,D40PS000020400,
http://statistics.data.gov.uk/id/local-authority/29UP,Tonbridge & Malling Borough Council,1/26/2022,0011043807/3,11043807, 248.00,Spy Alarms Ltd,01608800,,BRREP Servicing-IntruderAlarm,Leybourne Lakes Country Park,M15HLP20001939,
http://statistics.data.gov.uk/id/local-authority/29UP,Tonbridge & Malling Borough Council,1/26/2022,0011043808/3,11043808, 78.44,Atlas Facilities Managment Limited ,01075900,,Miscellaneous Services,Cleaning & Security,D21FDDD6044015,
http://statistics.data.gov.uk/id/local-authority/29UP,Tonbridge & Malling Borough Council,1/26/2022,0011043809/3,11043809, 496.00,Thomson Snell & Passmore,00101700,,Legal Fees,Legal Sals&Overheads,D01ARDR0044002,
http://statistics.data.gov.uk/id/local-authority/29UP,Tonbridge & Malling Borough Council,1/26/2022,0011043810/3,11043810, 624.00,Thomson Snell & Passmore,00101700,,Legal Fees,Legal Sals&Overheads,D01ARDR0044002,
http://statistics.data.gov.uk/id/local-authority/29UP,Tonbridge & Malling Borough Council,1/26/2022,0011043811/3,11043811, 300.00,Francis Taylor Building,01688700,,Legal Fees,Legal Sals&Overheads,D01ARDR0044002,
http://statistics.data.gov.uk/id/local-authority/29UP,Tonbridge & Malling Borough Council,1/26/2022,0011043812/3,11043812, 1347.50,Bevan Brittan LLP,01096600,,Legal Fees,Legal Sals&Overheads,D01ARDR0044002,
http://statistics.data.gov.uk/id/local-authority/29UP,Tonbridge & Malling Borough Council,1/26/2022,0011043813/1,11043813, 60.00,Sevenoaks District Council,01252500,,Hospitality,Mayoral & Other Member Support,D29LX000048003,
http://statistics.data.gov.uk/id/local-authority/29UP,Tonbridge & Malling Borough Council,1/26/2022,0011043814/1,11043814, 60.00,Dartford Borough Council,00026000,,Hospitality,Mayoral & Other Member Support,D29LX000048003,
http://statistics.data.gov.uk/id/local-authority/29UP,Tonbridge & Malling Borough Council,1/26/2022,0011043815/1,11043815, 16.95,REDACTED PERSONAL DATA,01189400,,Postages - PPI / Walksort,Electoral Registration,D31MF000045017,
http://statistics.data.gov.uk/id/local-authority/29UP,Tonbridge & Malling Borough Council,1/26/2022,0011043816/1,11043816, 12.00,Maidstone Borough Council,01453900,,Hospitality,Mayoral & Other Member Support,D29LX000048003,
http://statistics.data.gov.uk/id/local-authority/29UP,Tonbridge & Malling Borough Council,1/26/2022,0011043823/1,11043823, 40.34,Castle Water,01696500,,Estate Management Charge,Land Review,D40PS000020400,
http://statistics.data.gov.uk/id/local-authority/29UP,Tonbridge & Malling Borough Council,1/26/2022,0011043824/1,11043824, 40.34,Castle Water,01696500,,Estate Management Charge,Land Review,D40PS000020400,
http://statistics.data.gov.uk/id/local-authority/29UP,Tonbridge & Malling Borough Council,1/26/2022,0011043824/2,11043824, 0.42,Castle Water,01696500,,Estate Management Charge,Land Review,D40PS000020400,
http://statistics.data.gov.uk/id/local-authority/29UP,Tonbridge & Malling Borough Council,1/26/2022,0012008229/1,12008229, 7500.00,NTT United Kingdom Ltd,01747000,,Software Hire & Support,Information Technology,D27KD000044059,410031927
http://statistics.data.gov.uk/id/local-authority/29UP,Tonbridge & Malling Borough Council,1/26/2022,0012008230/1,12008230, 29.43,KCS,00054200,,Leasing Charges,Multi Function Devices,D22GB000044038,
http://statistics.data.gov.uk/id/local-authority/29UP,Tonbridge & Malling Borough Council,1/26/2022,0012008231/1,12008231, 1967.40,Vanquish Tech,01798700,,Purchases,Information Technology,D27KD000040101,410032116
http://statistics.data.gov.uk/id/local-authority/29UP,Tonbridge & Malling Borough Council,1/26/2022,0012008231/2,12008231, 241.26,Vanquish Tech,01798700,,Purchases,Information Technology,D27KD000040101,410032116
http://statistics.data.gov.uk/id/local-authority/29UP,Tonbridge & Malling Borough Council,1/26/2022,0012008232/1,12008232, 101.99,Kingsfield Computer Products Ltd,00942800,,Toner Cartridges,Information Technology,D27KD000043018,410032115
http://statistics.data.gov.uk/id/local-authority/29UP,Tonbridge & Malling Borough Council,1/26/2022,0012008232/2,12008232, 101.99,Kingsfield Computer Products Ltd,00942800,,Toner Cartridges,Information Technology,D27KD000043018,410032115
http://statistics.data.gov.uk/id/local-authority/29UP,Tonbridge & Malling Borough Council,1/26/2022,0012008232/3,12008232, 7.95,Kingsfield Computer Products Ltd,00942800,,Delivery Expenses,Information Technology,D27KD000044069,410032115
http://statistics.data.gov.uk/id/local-authority/29UP,Tonbridge & Malling Borough Council,1/26/2022,0012008233/1,12008233, 1567.44,Softcat,01615300,,Purchases,Information Technology,D27KD000040101,410032067
http://statistics.data.gov.uk/id/local-authority/29UP,Tonbridge & Malling Borough Council,1/26/2022,0012008233/2,12008233, 7.50,Softcat,01615300,,Delivery Expenses,Information Technology,D27KD000044069,410032067
http://statistics.data.gov.uk/id/local-authority/29UP,Tonbridge & Malling Borough Council,1/26/2022,0012008234/1,12008234, 70.00,Sumillion Ltd,01726600,,Software Hire & Support,Information Technology,D27KD000044059,410032119
http://statistics.data.gov.uk/id/local-authority/29UP,Tonbridge & Malling Borough Council,1/26/2022,0021037697/3,21037697, 118.56,Castle Water,01696500,,Water Charges (Metered),Cemetery,B26MP000024001,
http://statistics.data.gov.uk/id/local-authority/29UP,Tonbridge & Malling Borough Council,1/26/2022,0021037698/1,21037698, 698.25,Landscape Services Ltd,00057600,,Grounds Maintenance Contract,Cemetery,B26MP000050103,
http://statistics.data.gov.uk/id/local-authority/29UP,Tonbridge & Malling Borough Council,1/26/2022,0021037699/3,21037699, 66.42,KCC - L.A.S.E.R Commercial Services ,00184300,,Electricity,Open Spaces & Amenity Areas,B22LE000021002,
http://statistics.data.gov.uk/id/local-authority/29UP,Tonbridge & Malling Borough Council,1/26/2022,0021037704/1,21037704, 400.00,SWS Countryside & Landscape,01567200,,Maintenance of Grounds,Open Spaces & Amenity Areas,B22LE000020402,210056399
http://statistics.data.gov.uk/id/local-authority/29UP,Tonbridge & Malling Borough Council,1/26/2022,0021037705/1,21037705, 1650.00,SWS Countryside & Landscape,01567200,,Health & Safety - Trees,Countryside/Woodland Mgt,B22LG000044045,210056510
http://statistics.data.gov.uk/id/local-authority/29UP,Tonbridge & Malling Borough Council,1/26/2022,0021037706/1,21037706, 2000.00,SWS Countryside & Landscape,01567200,,Maintenance of Grounds,Leybourne Lakes Country Park,B22LK000020402,210056556
http://statistics.data.gov.uk/id/local-authority/29UP,Tonbridge & Malling Borough Council,1/26/2022,0021037707/1,21037707, 60.00,SWS Countryside & Landscape,01567200,,Maintenance of Grounds,Countryside/Woodland Mgt,B22LG000020402,210056437
http://statistics.data.gov.uk/id/local-authority/29UP,Tonbridge & Malling Borough Council,1/26/2022,0021037707/2,21037707, 50.00,SWS Countryside & Landscape,01567200,,Maintenance of Grounds,Countryside/Woodland Mgt,B22LG000020402,210056437
http://statistics.data.gov.uk/id/local-authority/29UP,Tonbridge & Malling Borough Council,1/26/2022,0021037707/3,21037707, 1520.00,SWS Countryside & Landscape,01567200,,Maintenance of Grounds,Countryside/Woodland Mgt,B22LG000020402,210056437
http://statistics.data.gov.uk/id/local-authority/29UP,Tonbridge & Malling Borough Council,1/26/2022,0021037708/1,21037708, 800.00,SWS Countryside & Landscape,01567200,,Maintenance of Grounds,Open Spaces & Amenity Areas,B22LE000020402,210056406
http://statistics.data.gov.uk/id/local-authority/29UP,Tonbridge & Malling Borough Council,1/26/2022,0021037709/1,21037709, 250.00,SWS Countryside & Landscape,01567200,,Health & Safety - Trees,Countryside/Woodland Mgt,B22LG000044045,210056510
http://statistics.data.gov.uk/id/local-authority/29UP,Tonbridge & Malling Borough Council,1/26/2022,0021037710/1,21037710, 1788.00,Alliance Leisure Services Ltd,01781100,,Contract Payments,LLCP Facility Improv,P05FF000009904,220003135
http://statistics.data.gov.uk/id/local-authority/29UP,Tonbridge & Malling Borough Council,1/26/2022,0021037712/1,21037712, 8458.56,Alliance Leisure Services Ltd,01781100,,Contract Payments,LLCP Facility Improv,P05FF000009904,210056633
http://statistics.data.gov.uk/id/local-authority/29UP,Tonbridge & Malling Borough Council,1/26/2022,0021037713/1,21037713, 2350.00,The Carpet & Flooring Company,01824600,,Initial Furniture & Equipment,Capital Renewals Leisure,P05KGBC0209906,210056603
http://statistics.data.gov.uk/id/local-authority/29UP,Tonbridge & Malling Borough Council,1/26/2022,0021037714/1,21037714, 1456.00,Burslem Memorials Ltd,01013400,,Maintenance of Grounds,Cemetery,B26MP000020402,210056592
http://statistics.data.gov.uk/id/local-authority/29UP,Tonbridge & Malling Borough Council,1/26/2022,0021037715/1,21037715, 742.27,Playdale Playgrounds Ltd,01195000,,Maintenance of Grounds,Leybourne Lakes Country Park,B22LK000020402,210056540
http://statistics.data.gov.uk/id/local-authority/29UP,Tonbridge & Malling Borough Council,1/26/2022,0021037716/1,21037716, 1794.70,Borough Green Chamber of Commerce,01350200,,Borough Christmas Lighting,Eco Dev & Reg Boro Chris Light,D52TE000047014,
http://statistics.data.gov.uk/id/local-authority/29UP,Tonbridge & Malling Borough Council,1/26/2022,0021037718/1,21037718, 586.00,Streetmaster (South Wales) Ltd,00222100,,Maintenance of Grounds,Sports Grounds,B13ET000020402,210056262
http://statistics.data.gov.uk/id/local-authority/29UP,Tonbridge & Malling Borough Council,1/26/2022,0021037719/1,21037719, 3000.00,Kent County Council,00167000,,Sports Development Programme,Sports Partnerships,B39TD000044097,210056442
http://statistics.data.gov.uk/id/local-authority/29UP,Tonbridge & Malling Borough Council,1/26/2022,0022026208/1,22026208, 6801.79,MCL  Mechanical Handling Ltd,00064100,,Other Expenses,Disabled Facilities Grant Mand,P03AC000009908,
http://statistics.data.gov.uk/id/local-authority/29UP,Tonbridge & Malling Borough Council,1/26/2022,0022026209/1,22026209, 3698.21,Peabody South East LTD,01680900,,Other Expenses,Disabled Facilities Grant Mand,P03AC000009908,
http://statistics.data.gov.uk/id/local-authority/29UP,Tonbridge & Malling Borough Council,1/26/2022,0022026211/1,22026211, 5368.94,Adaptec Mobilty Ltd,01785800,339578354,Other Expenses,Disabled Facilities Grant Mand,P03AC000009908,
http://statistics.data.gov.uk/id/local-authority/29UP,Tonbridge & Malling Borough Council,1/26/2022,0022026212/1,22026212, 773.12,Peabody South East LTD,01680900,,Other Expenses,Disabled Facilities Grant Mand,P03AC000009908,
http://statistics.data.gov.uk/id/local-authority/29UP,Tonbridge & Malling Borough Council,1/26/2022,0022026213/1,22026213, 8000.00,Anna Whalen Consulting,01830800,,Professional Fees,Homelessness,C01AA000044001,
http://statistics.data.gov.uk/id/local-authority/29UP,Tonbridge & Malling Borough Council,1/26/2022,0022026214/1,22026214, 2148.00,Broxap Ltd,00312300,,Purchases,Street Scene,H23SD000040101,220003154
http://statistics.data.gov.uk/id/local-authority/29UP,Tonbridge & Malling Borough Council,1/26/2022,0022026215/1,22026215, 302.34,Scottish Water Business Stream Ltd,01641100,,Sewerage Charges,Public Conveniences,H22SCH00424003,
http://statistics.data.gov.uk/id/local-authority/29UP,Tonbridge & Malling Borough Council,1/26/2022,0022026216/3,22026216, 225.80,Countrystyle Group,00835900,781981681,Plastic Recycling,Dry Recycling,H34SR000054019,
http://statistics.data.gov.uk/id/local-authority/29UP,Tonbridge & Malling Borough Council,1/26/2022,0022026217/1,22026217, 10454.40,Straight Plc,01029400,,Initial Furniture & Equipment,New Waste Service Containers,P02CN000009906,210056515
http://statistics.data.gov.uk/id/local-authority/29UP,Tonbridge & Malling Borough Council,1/26/2022,0022026218/3,22026218, 100.44,Premier Inn,01217400,,Temporary Accommodation,Homelessness,C01AA000044051,
http://statistics.data.gov.uk/id/local-authority/29UP,Tonbridge & Malling Borough Council,1/26/2022,0022026219/3,22026219, 165.77,E.ON - Next,01790900,,Electricity,Homelessness,C01AA000021002,
http://statistics.data.gov.uk/id/local-authority/29UP,Tonbridge & Malling Borough Council,1/26/2022,0022026220/1,22026220, 99.00,Ferret Information Systems,01023100,,Subscriptions,Env Hlth & Hsg Sals&Overheads,D01AVDV0747002,220003190
http://statistics.data.gov.uk/id/local-authority/29UP,Tonbridge & Malling Borough Council,1/26/2022,0022026221/1,22026221, 435.59,QED Environmental Systems LTD,00038700,,Air Quality Monitoring,Environmental Protection,H32SN000054016,220003185
http://statistics.data.gov.uk/id/local-authority/29UP,Tonbridge & Malling Borough Council,1/26/2022,0022026221/2,22026221, 28.00,QED Environmental Systems LTD,00038700,,Air Quality Monitoring,Environmental Protection,H32SN000054016,220003185
http://statistics.data.gov.uk/id/local-authority/29UP,Tonbridge & Malling Borough Council,1/26/2022,0022026223/1,22026223, 257.31,British Gas Services LTD,01260000,,Electricity,Homelessness,C01AAMAUN21002,
http://statistics.data.gov.uk/id/local-authority/29UP,Tonbridge & Malling Borough Council,1/26/2022,0022026224/1,22026224, 1440.00,The Oyster Partnership,01196400,,Temporary Staff,Env Hlth & Hsg Sals&Overheads,D01AVDV0711300,
http://statistics.data.gov.uk/id/local-authority/29UP,Tonbridge & Malling Borough Council,1/26/2022,0022026225/1,22026225, 8341.45,Clarion Housing,01776300,,Contribution from Other Bodies,Homelessness,C01AACV1995001,
http://statistics.data.gov.uk/id/local-authority/29UP,Tonbridge & Malling Borough Council,1/26/2022,0031018415/3,31018415, 16.67,REDACTED PERSONAL DATA,01576900,,Purchases,Parking Off-Street,E10HA000040101,
http://statistics.data.gov.uk/id/local-authority/29UP,Tonbridge & Malling Borough Council,1/26/2022,0031018415/4,31018415, 3.96,REDACTED PERSONAL DATA,01576900,,Purchases,Parking Off-Street,E10HA000040101,
http://statistics.data.gov.uk/id/local-authority/29UP,Tonbridge & Malling Borough Council,1/26/2022,0031018415/5,31018415, 8.00,REDACTED PERSONAL DATA,01576900,,Purchases,Parking Off-Street,E10HA000040101,
http://statistics.data.gov.uk/id/local-authority/29UP,Tonbridge & Malling Borough Council,1/26/2022,0031018416/1,31018416, 11.00,REDACTED PERSONAL DATA,01576900,,Purchases,Parking Off-Street,E10HA000040101,
http://statistics.data.gov.uk/id/local-authority/29UP,Tonbridge & Malling Borough Council,1/26/2022,0031018417/3,31018417, 5.83,B&Q/Screwfix Direct(TradeUKAccount),00141300,,Purchases,Boro Highways & Emergency Oper,E01AA000040101,
http://statistics.data.gov.uk/id/local-authority/29UP,Tonbridge & Malling Borough Council,1/26/2022,0031018418/3,31018418, 37.93,B&Q/Screwfix Direct(TradeUKAccount),00141300,,Purchases,Boro Highways & Emergency Oper,E01AA000040101,
http://statistics.data.gov.uk/id/local-authority/29UP,Tonbridge & Malling Borough Council,1/26/2022,0031018419/3,31018419, 52176.58,Tunbridge Wells Borough Council,00844600,,CCTV Monitoring Station,Security Services Management,E09GA000051020,
http://statistics.data.gov.uk/id/local-authority/29UP,Tonbridge & Malling Borough Council,1/26/2022,0031018424/3,31018424, 932.03,CDER Group,01773300,,Adjudication & Enforcement Ser,Parking Off-Street,E10HA000044230,
http://statistics.data.gov.uk/id/local-authority/29UP,Tonbridge & Malling Borough Council,1/26/2022,0031018425/1,31018425, 1719.26,HABOKE Woodyard,01804700,,Contract Payments,LLCP Path Improvements,P05FH000009904,210056542
http://statistics.data.gov.uk/id/local-authority/29UP,Tonbridge & Malling Borough Council,1/26/2022,0031018425/2,31018425, 100.00,HABOKE Woodyard,01804700,,Contract Payments,LLCP Path Improvements,P05FH000009904,210056542
http://statistics.data.gov.uk/id/local-authority/29UP,Tonbridge & Malling Borough Council,1/26/2022,0031018426/1,31018426, 5160.00,HALO Technologies Europe LTD,01824700,,Purchases,Parking Off-Street,E10HA000040101,310042756
http://statistics.data.gov.uk/id/local-authority/29UP,Tonbridge & Malling Borough Council,1/26/2022,0031018426/2,31018426, 400.00,HALO Technologies Europe LTD,01824700,,Purchases,Parking Off-Street,E10HA000040101,310042756
http://statistics.data.gov.uk/id/local-authority/29UP,Tonbridge & Malling Borough Council,1/26/2022,0031018426/3,31018426, 395.00,HALO Technologies Europe LTD,01824700,,Purchases,Parking Off-Street,E10HA000040101,310042756
http://statistics.data.gov.uk/id/local-authority/29UP,Tonbridge & Malling Borough Council,1/26/2022,0031018426/4,31018426, 400.00,HALO Technologies Europe LTD,01824700,,Purchases,Parking On-Street,E10HD000040101,310042756
http://statistics.data.gov.uk/id/local-authority/29UP,Tonbridge & Malling Borough Council,1/26/2022,0031018426/5,31018426, 395.00,HALO Technologies Europe LTD,01824700,,Purchases,Parking On-Street,E10HD000040101,310042756
http://statistics.data.gov.uk/id/local-authority/29UP,Tonbridge & Malling Borough Council,1/26/2022,0031018426/6,31018426, 5160.00,HALO Technologies Europe LTD,01824700,,Purchases,Parking On-Street,E10HD000040101,310042756
http://statistics.data.gov.uk/id/local-authority/29UP,Tonbridge & Malling Borough Council,1/26/2022,0031018427/1,31018427, 228.48,KM Media Group Ltd,00053900,,Advertising General,Parking On-Street,E10HDZ99944216,310042766
http://statistics.data.gov.uk/id/local-authority/29UP,Tonbridge & Malling Borough Council,1/26/2022,0031018430/1,31018430, 500.00,Traffic Enforcement Centre,00604200,,Adjudication & Enforcement Ser,Parking Off-Street,E10HA000044230,
http://statistics.data.gov.uk/id/local-authority/29UP,Tonbridge & Malling Borough Council,1/26/2022,0031018430/2,31018430, 500.00,Traffic Enforcement Centre,00604200,,Adjudication & Enforcement Ser,Parking On-Street,E10HD000044230,
http://statistics.data.gov.uk/id/local-authority/29UP,Tonbridge & Malling Borough Council,1/26/2022,0032009372/3,32009372, 756.79,Sevenoaks District Council,00089300,,Building Control Partnership,Building Control,A01AD000054023,
http://statistics.data.gov.uk/id/local-authority/29UP,Tonbridge & Malling Borough Council,1/26/2022,0032009373/1,32009373, 468.00,REDACTED PERSONAL DATA,01831200,,Application & Appeals,Development Management,A01AB000044194,
http://statistics.data.gov.uk/id/local-authority/29UP,Tonbridge & Malling Borough Council,1/26/2022,0032009376/3,32009376, 1230.00,The Oyster Partnership,01196400,,Temporary Staff,Planning Sals&Overheads,D01AJDJ0111300,
http://statistics.data.gov.uk/id/local-authority/29UP,Tonbridge & Malling Borough Council,1/26/2022,0032009378/1,32009378, 192.78,KM Media Group Ltd,00053900,,Advertising General,Development Management,A01ABZ99944216,320003372
http://statistics.data.gov.uk/id/local-authority/29UP,Tonbridge & Malling Borough Council,1/26/2022,0032009379/3,32009379, 1510.00,The Oyster Partnership,01196400,,Temporary Staff,Planning Sals&Overheads,D01AJDJ0111300,
http://statistics.data.gov.uk/id/local-authority/29UP,Tonbridge & Malling Borough Council,1/26/2022,0032009381/1,32009381, 246.00,British Geological Survey (NERC),00514200,,Purchases,Planning Sals&Overheads,D01AJDJ0140101,320003378
http://statistics.data.gov.uk/id/local-authority/29UP,Tonbridge & Malling Borough Council,1/26/2022,0041033880/3,41033880, 937.50,Morgan Hunt UK Ltd,01086900,,Temporary Staff,Finance Sals&Overheads,D01AFDF1111300,
http://statistics.data.gov.uk/id/local-authority/29UP,Tonbridge & Malling Borough Council,1/26/2022,0041033881/3,41033881, 980.50,Morgan Hunt UK Ltd,01086900,,Temporary Staff,Finance Sals&Overheads,D01AFDF1111300,
http://statistics.data.gov.uk/id/local-authority/29UP,Tonbridge & Malling Borough Council,1/26/2022,0041033890/3,41033890, 9928.00,Security Plus + Limited,01815500,536937019,Cash Collection,Parking Off-Street,E10HA000044007,
http://statistics.data.gov.uk/id/local-authority/29UP,Tonbridge & Malling Borough Council,1/26/2022,0041033891/3,41033891, 1658.25,Security Plus + Limited,01815500,536937019,Cash Collection,Parking Off-Street,E10HA000044007,
http://statistics.data.gov.uk/id/local-authority/29UP,Tonbridge & Malling Borough Council,1/26/2022,0041033892/3,41033892, 410.28,Rundle & Co Ltd,00087200,,Bailiffs Commission,Local Revenue & NNDR Collect,D41QA000044075,
http://statistics.data.gov.uk/id/local-authority/29UP,Tonbridge & Malling Borough Council,1/26/2022,0041033909/1,41033909, 33000.00,Citizens Advice North and West Kent ,01617600,,Charitable / Voluntary Organis,Grants & Payments to Vol Orgn,D37PACV1947005,
http://statistics.data.gov.uk/id/local-authority/29UP,Tonbridge & Malling Borough Council,1/26/2022,0051008637/3,51008637, 20.00,National Pet College Ltd,01830600,,Ext Fees/Prof & Tech,Training,D10DCDR0413561,
http://statistics.data.gov.uk/id/local-authority/29UP,Tonbridge & Malling Borough Council,1/26/2022,0051008638/1,51008638, 695.00,HB Editorial Services Ltd,01620300,,Recruitment Advertising,Recruitment Expenses,D10DADR0013110,510010481
http://statistics.data.gov.uk/id/local-authority/29UP,Tonbridge & Malling Borough Council,1/26/2022,0051008639/1,51008639, 399.00,Medway Council,00934700,,Ext Fees/Prof & Tech,Training,D10DCDV0313561,510010521
http://statistics.data.gov.uk/id/local-authority/29UP,Tonbridge & Malling Borough Council,1/26/2022,0051008640/1,51008640, 99.00,Public Policy Exchange Limited,01359800,,Ext Fees/Prof & Tech,Training,D10DCDG3013561,510010537
http://statistics.data.gov.uk/id/local-authority/29UP,Tonbridge & Malling Borough Council,1/28/2022,0041033913/1,41033913, 22586.00,Arden Maidstone Limited,01815700,,Initial Furniture & Equipment,Hybrid / Electric Car,P06EZ000009906,
http://statistics.data.gov.uk/id/local-authority/29UP,Tonbridge & Malling Borough Council,1/28/2022,0041033913/2,41033913, 55.00,Arden Maidstone Limited,01815700,,Initial Furniture & Equipment,Hybrid / Electric Car,P06EZ000009906,
http://statistics.data.gov.uk/id/local-authority/29UP,Tonbridge & Malling Borough Council,1/28/2022,0041033915/1,41033915, 36.00,YESpay International Limited,01068000,991280207,Contract Services,Banking Arrangements,D43QK000044005,
http://statistics.data.gov.uk/id/local-authority/29UP,Tonbridge & Malling Borough Council,1/31/2022,0041033916/1,41033916, 391.22,King & Shaxson Investments,01411100,,Professional Fees,Treasury Management,D43QT000044001,
http://statistics.data.gov.uk/id/local-authority/29UP,Tonbridge & Malling Borough Council,1/31/2022,0041033919/1,41033919, 3411.69,National Westminster Bank Plc,00069400,,Bank Charges,Banking Arrangements,D43QK000044222,
http://statistics.data.gov.uk/id/local-authority/29UP,Tonbridge & Malling Borough Council,1/31/2022,0041033922/1,41033922, 3411.69,National Westminster Bank Plc,00069400,,Bank Charges,Banking Arrangements,D43QK000044222,
